Cogmind - Beta 16 @@@ ROGUE MODE // 2025.12.28 @ 22:32:39 Player: Anting Result: Destroyed by Striker with Plasma Lance Performance ------------- Evolutions (7) 3500 Regions Visited (29) 5800 Robots Destroyed (294) 1470 Value Destroyed (16066) 16066 Prototype IDs (51) 1020 Alien Tech Used (0) 0 Bonus (14880) 14880 TOTAL SCORE: 42736 Bonus ------- High Alert Combat Kills 2664 Follower Combat Kills 5009 Entered Garrisons 1200 Used RIF Installer 4000 Network Hubs Disabled 400 Aligned with FarCom 300 Built Enhanced Grunts 300 Met R17 at Cetus 500 Met R17 at Research 2000 Friendly Fire -1493 Cogmind --------- Core Integrity 0/1300 Matter 296/300 Energy 99/100 System Corruption 14% Temperature Cool (0) Movement Core (50) Location -3/Research Parts ------- > --- POWER (2) -------- (None) > --- PROPULSION (6) --- (None) > --- UTILITY (11) ----- (None) > --- WEAPON (2) ------- (None) > --- INVENTORY (5) ---- Quantum Capacitor Relay Coupler [Swarmer] (42) Relay Coupler [Swarmer] (33) Relay Coupler [Duelist] (36) Peak State ------------ > --- POWER ------------ Compact Particle Reactor Light Quantum Reactor > --- PROPULSION ------- Improved Heavy Treads Improved Heavy Treads Centrium Heavy Treads > --- UTILITY ---------- Huge Storage Unit Quantum Capacitor Improved Transmission Jammer Experimental ECM Suite Centrium Medium Armor Plating Advanced Force Field Relay Coupler [Swarmer] Relay Coupler [Grunt] Relay Coupler [Brawler] Relay Coupler [Sentry] > --- WEAPON ----------- Nova Cannon Advanced Remote Datajack > --- INVENTORY -------- Compact Particle Reactor Advanced Heavy Treads Advanced Heavy Treads Advanced Heat Sink Advanced Heat Sink Relay Coupler [NC] Relay Coupler [Swarmer] Relay Coupler [Swarmer] Relay Coupler [Grunt] Relay Coupler [Duelist] Relay Coupler [Sentry] Relay Coupler [Specialist] Relay Coupler [Hunter] Relay Coupler [Heavy] Relay Coupler [Behemoth] Relay Coupler [Proto] Relay Coupler [Proto] Relay Coupler [Proto] Advanced Variable Charge Gun Compact HERF Cannon Hypervelocity Railgun Fusion Bomb Launcher Fusion Bomb Launcher [Rating: 154] Favorites ----------- Power Quantum Reactor Engine Ion Engine Power Core Light Nuclear Core Reactor Quantum Reactor Propulsion Light Treads Treads Light Treads Leg Aluminum Leg Hover Unit Cooled Airjet Utility High-capacity Storage Unit Device Experimental Heat Sink Storage High-capacity Storage Unit Processor Experimental Core Analyzer Hackware Relay Coupler [Grunt] Protection Centrium Medium Armor Plating Weapon Advanced Beam Cannon Energy Gun Advanced Variable Charge Gun Energy Cannon Advanced Beam Cannon Ballistic Gun Enhanced Autogun Launcher Rocket Launcher Special Weapon Improved Remote Datajack Piercing Weapon Lance Special Melee Weapon Advanced Datajack Build | -11 -10 -10 -9 -9 -9 -8 -8 -8 -8 -8 -7 -7 -7 -7 -6 -6 -5 -5 -5 -5 -5 -5 -5 -5 -4 -4 -4 -4 -3 ------- Run | Yrd Mat Min Mat Min Exi Min Mat Gar Mat Gar Fac Was Fac Gar Fac Gar Fac Was Fac Ext Cet Arc Hub Gar Fac Was Fac Gar Res Slots Evolved 14 | . . . 2 . . . 2 . . . 2 . . . 2 . 2 . . . . . . . 2 . . . 2 Power 1 | . . . . . . . . . . . . . . . . . 1 . . . . . . . . . . . . Propulsion 4 | . . . 1 . . . 1 . . . . . . . . . . . . . . . . . . . . . 2 Utility 9 | . . . 1 . . . 1 . . . 2 . . . 2 . 1 . . . . . . . 2 . . . . Weapon . | . . . . . . . . . . . . . . . . . . . . . . . . . . . . . . Parts Attached 229 | 8 14 2 3 . 23 1 13 15 10 6 3 4 1 14 3 12 5 . 5 11 8 9 2 12 1 1 3 11 29 Power 27 | 1 2 1 . . 1 . . 2 . 4 . 1 . . . 2 1 . . 3 2 . . . 1 . . 1 5 Engine 6 | 1 2 . . . . . . . . 2 . . . . . 1 . . . . . . . . . . . . . Core 11 | . . 1 . . 1 . . 2 . 2 . . . . . . 1 . . 3 . . . . . . . 1 . Reactor 10 | . . . . . . . . . . . . 1 . . . 1 . . . . 2 . . . 1 . . . 5 Propulsion 56 | 2 3 . 1 . 10 . 7 5 2 1 . 2 . 3 . 3 . . 1 4 1 2 . 2 . . 2 . 5 Treads 50 | . 2 . 1 . 8 . 6 5 2 1 . 2 . 3 . 3 . . 1 4 1 2 . 2 . . 2 . 5 Leg 5 | 2 1 . . . 2 . . . . . . . . . . . . . . . . . . . . . . . . Wheel . | . . . . . . . . . . . . . . . . . . . . . . . . . . . . . . Hover 1 | . . . . . . . 1 . . . . . . . . . . . . . . . . . . . . . . Flight . | . . . . . . . . . . . . . . . . . . . . . . . . . . . . . . Utility 96 | 3 4 1 1 . 6 . 4 5 4 . 3 1 1 9 2 6 4 . 2 2 4 4 2 9 . 1 1 6 11 Device 40 | 2 2 1 1 . 5 . 2 2 . . . . . . 1 1 2 . . . 1 4 1 4 . . . 4 7 Storage 6 | 1 2 . . . . . . . . . . . . . . . . . . . . . . . . . 1 . 2 Processor 4 | . . . . . . . . 1 . . . . . . 1 . . . . 1 1 . . . . . . . . Hackware 32 | . . . . . . . . . 2 . 3 1 . 8 . 4 2 . 2 . . . 1 4 . 1 . 2 2 Protection 14 | . . . . . 1 . 2 2 2 . . . 1 1 . 1 . . . 1 2 . . 1 . . . . . Artifact . | . . . . . . . . . . . . . . . . . . . . . . . . . . . . . . Weapon 50 | 2 5 . 1 . 6 1 2 3 4 1 . . . 2 1 1 . . 2 2 1 3 . 1 . . . 4 8 Energy Gun 4 | 1 1 . . . . . 1 . . . . . . . . . . . . . 1 . . . . . . . . Energy Cannon 10 | . 2 . . . . . . 1 . . . . . . 1 . . . 2 1 . 1 . . . . . . 2 Ballistic Gun 22 | 1 1 . . . 4 1 1 2 3 1 . . . 1 . 1 . . . . . 1 . . . . . 4 1 Ballistic Cannon . | . . . . . . . . . . . . . . . . . . . . . . . . . . . . . . Launcher 6 | . 1 . . . 2 . . . . . . . . . . . . . . . . . . . . . . . 3 Special Weapon 5 | . . . . . . . . . 1 . . . . 1 . . . . . . . . . 1 . . . . 2 Impact Weapon . | . . . . . . . . . . . . . . . . . . . . . . . . . . . . . . Slashing Weapon . | . . . . . . . . . . . . . . . . . . . . . . . . . . . . . . Piercing Weapon 1 | . . . . . . . . . . . . . . . . . . . . 1 . . . . . . . . . Special Melee Weapon 2 | . . . 1 . . . . . . . . . . . . . . . . . . 1 . . . . . . . Unidentified Prototypes 18 | . 1 . . . 3 . 2 . 1 . . . . . . . . . 1 . 5 2 . 1 . . . . 2 Corrupted Parts 1 | . . . . . . . . . . . . . . . . . . . . . . . . . . . . . 1 System Corruption 10 | . . . . . . . . . . . . . . . . . . . . . . . . . . . . . 10 Parts Lost 92 | . 5 . . . 15 . . 2 . 2 . . . 6 . 2 . . 5 12 . . . 8 . . . 7 28 Power 14 | . 1 . . . 1 . . . . 2 . . . . . 1 . . 2 2 . . . 1 . . . 1 3 Propulsion 25 | . 1 . . . 7 . . 1 . . . . . 2 . . . . 2 2 . . . 2 . . . 1 7 Utility 35 | . 2 . . . 4 . . 1 . . . . . 3 . 1 . . 1 4 . . . 4 . . . 4 11 Weapon 18 | . 1 . . . 3 . . . . . . . . 1 . . . . . 4 . . . 1 . . . 1 7 Highest Loss Streak 20 | . 2 . . . 7 . . 1 . 1 . . . 3 . 1 . . 4 5 . . . 2 . . . 2 20 To Critical Strikes 12 | . . . . . 11 . . . . . . . . . . . . . . . . . . . . . . 1 . Average Backups 17 | 3 12 19 19 20 14 17 18 18 19 18 17 17 18 18 17 19 18 19 18 15 17 19 19 18 17 18 19 18 21 Power . | . . . . . . . . . . . . . . . . . . . . . 1 2 2 1 . . . . . Propulsion 3 | 1 5 7 6 9 4 6 6 6 4 3 3 3 4 2 1 . 1 1 . . . 1 1 1 2 2 2 1 . Utility 9 | . 1 3 3 3 2 6 6 8 9 10 9 9 9 10 11 13 14 15 15 13 13 13 13 13 13 14 14 14 16 Weapon 3 | . 4 7 8 7 6 5 5 3 3 4 4 4 4 3 3 3 2 2 1 1 2 2 2 1 2 2 3 2 3 Tool/Special . | . . . . . . . . . . . . . . . . . . . . . . . . . . . . . . Unused Backups 58 | . 3 . 1 . 6 . 4 3 . 6 . . . 4 . 2 . . . . 3 . . 2 . . . 5 19 Power 9 | . . . . . 3 . . . . . . . . . . 1 . . . . 1 . . 1 . . . . 3 Propulsion 10 | . . . . . 1 . 1 . . 3 . . . 2 . 1 . . . . . . . . . . . 1 1 Utility 31 | . 1 . 1 . 1 . 2 2 . 3 . . . 2 . . . . . . 2 . . 1 . . . 1 15 Weapon 8 | . 2 . . . 1 . 1 1 . . . . . . . . . . . . . . . . . . . 3 . Tool/Special . | . . . . . . . . . . . . . . . . . . . . . . . . . . . . . . Average Slot Usage (%) 89 | . 99 100 99 100 82 94 94 99 99 99 99 86 76 83 92 88 86 88 85 82 86 75 94 92 88 92 94 90 74 Engine 1 | . 13 . . . . . . . . 2 . . . . . 2 1 . . . . . . . . . . . . Core 4 | . . 13 11 11 9 11 9 9 9 6 7 4 . . . . 2 5 4 6 4 . . . . . . 2 1 Reactor 3 | . . . . . . . . . . . . 2 7 7 6 3 5 5 4 . 4 11 11 10 9 10 10 7 6 Treads 20 | . 12 28 33 33 31 33 35 35 36 36 30 23 15 17 20 16 11 11 10 13 17 17 17 16 15 15 15 11 11 Leg 1 | . 15 . . . . . . . . . . . . . . . . . . . . . . . . . . . . Device 12 | . 12 14 21 22 16 22 17 17 14 15 11 7 7 8 12 8 5 5 . 3 10 5 11 10 15 15 15 20 15 Storage 7 | . 15 14 11 11 10 11 9 9 9 9 7 7 7 7 6 6 5 5 5 5 5 5 5 5 5 5 5 5 3 Hackware 15 | . . . . . . . . . 5 2 18 23 23 19 20 23 29 35 39 37 23 23 29 28 26 29 31 26 23 Protection 3 | . . . . . . . 5 9 7 9 7 . . 7 6 5 4 . . 2 9 2 5 4 5 5 5 5 3 Energy Cannon 6 | . 12 28 21 21 6 11 9 9 . 6 3 . . 1 6 4 2 5 3 3 . . 5 4 5 5 5 . 1 Ballistic Gun 5 | . 8 . . . 6 5 8 9 15 10 7 11 13 11 6 5 4 . 4 3 . . 5 2 . . . 5 1 Special Weapon 1 | . . . . . . . . . 2 1 3 2 1 1 . 2 3 5 2 . . . . . 5 5 5 1 1 Peak Build Rating 154 | 7 16 16 19 20 47 45 42 47 48 52 51 70 71 72 80 104 112 103 114 91 112 116 112 115 113 116 124 127 154 Average Rating 67 | 5 11 15 18 19 23 39 36 41 46 44 50 56 68 67 79 86 103 103 105 78 84 87 111 110 112 115 121 114 118 On Entrance 66 | . 7 14 16 19 20 45 36 37 45 47 45 50 70 70 62 80 104 103 103 78 55 112 116 112 99 113 116 124 110 Avg Prop Armor Cover (%) 7 | . . . . . . . . . . . . . . 11 . . . . . . . . 10 6 5 5 5 9 21 Naked Turns 33 | . . . . . 5 . . . . . . . . . . . . . . . . . . . . . . . 28 Heaviest Build 153 | 14 54 54 56 56 73 73 81 81 65 70 70 67 67 85 76 76 84 74 74 80 103 108 101 101 97 97 97 110 153 Greatest Support 230 | 20 40 40 60 60 69 69 92 84 86 86 84 140 140 140 112 130 120 120 120 118 123 131 131 131 103 103 140 140 230 Greatest Overweight (x) 26 | 3 2 1 . . 2 1 1 1 . . . 1 . 1 . . . . . 1 1 . 1 1 . . . 1 26 Average Overweight (x) . | . . 1 . . . . . . . . . . . . . . . . . . . . . . . . . . . Largest Inventory Capacity 25 | 8 20 20 20 20 20 20 20 20 20 20 20 20 20 20 20 20 20 20 20 20 20 20 20 20 20 20 20 20 25 Average Capacity 19 | 7 14 20 20 20 19 20 20 20 20 20 20 20 20 20 20 20 20 20 20 20 20 20 20 20 20 20 20 20 24 Most Carried 25 | 5 19 20 20 20 20 19 20 20 20 20 19 20 20 20 19 20 20 20 20 17 20 20 20 20 19 20 20 20 25 Average Carried 18 | 3 12 19 19 20 14 18 19 19 19 19 18 18 19 19 18 19 19 19 19 15 18 19 19 19 18 19 20 19 23 Final Capacity 20 | 8 20 20 20 20 20 20 20 20 20 20 20 20 20 20 20 20 20 20 20 20 20 20 20 20 20 20 20 20 5 Final Carried 20 | 5 18 20 20 20 18 19 20 20 20 20 18 20 18 20 18 20 20 20 16 15 20 20 20 20 19 20 20 20 5 Class Distribution -------------------- 42% | Botlord-Mutant 26% | Mutant 16% | Scavenger-Mutant 13% | Bothacker-Mutant Dominant Class ---------------- Mutant | -10/Materials Mutant | -10/Mines Mutant | -9/Materials Mutant | -9/Mines Mutant | -9/Exiles Mutant | -8/Mines Scavenger-Mutant | -8/Materials Scavenger-Mutant | -8/Garrison Bothacker-Mutant | -8/Materials Bothacker-Mutant | -8/Garrison Bothacker-Mutant | -7/Factory Bothacker-Mutant | -7/Waste Bothacker-Mutant | -7/Factory Bothacker-Mutant | -7/Garrison Botlord-Mutant | -6/Factory Botlord-Mutant | -6/Garrison Botlord-Mutant | -5/Factory Botlord-Mutant | -5/Waste Botlord-Mutant | -5/Factory Mutant | -5/Extension Scavenger-Mutant | -5/Cetus Scavenger-Mutant | -5/Archives Botlord-Mutant | -5/Hub_04(d) Botlord-Mutant | -5/Garrison Botlord-Mutant | -4/Factory Botlord-Mutant | -4/Waste Botlord-Mutant | -4/Factory Botlord-Mutant | -4/Garrison Botlord-Mutant | -3/Research Resources | -11 -10 -10 -9 -9 -9 -8 -8 -8 -8 -8 -7 -7 -7 -7 -6 -6 -5 -5 -5 -5 -5 -5 -5 -5 -4 -4 -4 -4 -3 ----------- Run | Yrd Mat Min Mat Min Exi Min Mat Gar Mat Gar Fac Was Fac Gar Fac Gar Fac Was Fac Ext Cet Arc Hub Gar Fac Was Fac Gar Res Matter Collected 10416 | 300 313 11 20 69 921 244 275 530 510 804 21 337 19 1141 . 525 243 . 417 778 126 164 128 456 . . . 1090 974 Remotely . | . . . . . . . . . . . . . . . . . . . . . . . . . . . . . . Salvage Created 12782 | 204 793 140 237 23 656 289 921 1058 635 1175 . 827 19 1132 . 552 116 . 555 351 84 299 142 824 . . . 704 1046 Parts 762 | 19 43 7 20 4 79 7 48 70 37 77 . 20 2 72 . 39 9 . 37 22 7 18 9 41 . . . 41 34 Haulers Intercepted 8 | . 1 . 2 . . . 3 . 2 . . . . . . . . . . . . . . . . . . . . Recyclers Shooed 6 | . 1 . . . . 3 . . . . . . . . . . . . 1 1 . . . . . . . . . Parts Field Recycled . | . . . . . . . . . . . . . . . . . . . . . . . . . . . . . . Retrieved Matter . | . . . . . . . . . . . . . . . . . . . . . . . . . . . . . . Parts Self-Destructed . | . . . . . . . . . . . . . . . . . . . . . . . . . . . . . . Prevented . | . . . . . . . . . . . . . . . . . . . . . . . . . . . . . . Parts Restored . | . . . . . . . . . . . . . . . . . . . . . . . . . . . . . . Kills | -11 -10 -10 -9 -9 -9 -8 -8 -8 -8 -8 -7 -7 -7 -7 -6 -6 -5 -5 -5 -5 -5 -5 -5 -5 -4 -4 -4 -4 -3 ------- Run | Yrd Mat Min Mat Min Exi Min Mat Gar Mat Gar Fac Was Fac Gar Fac Gar Fac Was Fac Ext Cet Arc Hub Gar Fac Was Fac Gar Res Combat Hostiles Destroyed 228 | . 17 5 4 3 5 . 11 25 11 31 . 3 . 26 . 11 2 . 10 4 . . 2 16 . . . 16 26 Guns 121 | . 12 . . . 1 . 3 15 7 23 . 3 . 17 . 7 . . 9 2 . . 1 4 . . . 16 1 Cannons 62 | . 2 5 4 . 2 . 8 10 . 6 . . . 2 . 3 2 . 1 1 . . 1 12 . . . . 3 AOE 41 | . 3 . . 3 2 . . . 4 2 . . . 7 . 1 . . . . . . . . . . . . 19 Classes Destroyed 25 | 2 6 . 1 . 3 . 1 1 2 2 . 1 . 1 . 1 . . . . . . . 1 . . . . 3 Worker 5 | . 1 . 1 . . 1 . . 1 . . . 1 . . . . . . . . . . . . . . . . Builder 4 | . . . . . . . . . 1 . . . . . . . . . . 3 . . . . . . . . . Tunneler 7 | 6 . . . . . . . . . . . . . . . . . . . . . . 1 . . . . . . Hauler 8 | . 1 . 2 . . . 3 . 2 . . . . . . . . . . . . . . . . . . . . Recycler 9 | 1 1 . . . . 4 2 . . . . . . . . . . . 1 . . . . . . . . . . Operator 13 | . 3 . . . . . . . 1 . . . . . . . . . . . . 9 . . . . . . . Turret 1 | . . . . . 1 . . . . . . . . . . . . . . . . . . . . . . . . Watcher 5 | . 1 . . . . . 1 . 1 1 . . . . . . . . . . . . 1 . . . . . . Swarmer 70 | . 3 3 3 3 . . . 6 2 12 . . . 11 . 1 . . 6 1 . . . 4 . . . 6 9 Cutter 1 | . . . . . . . . . . . . . . . . 1 . . . . . . . . . . . . . Grunt 76 | . 14 2 . . . . 5 11 2 10 . . . 7 . 4 . . . . . . . 6 . . . 7 8 Brawler 6 | . . . . . . . . . 3 . . . . . . 1 . . . . . . . 1 . . . . 1 Duelist 6 | . . . . . . . . . . 2 . . . 1 . . . . . . . . . 2 . . . 1 . Sentry 26 | . . . 1 . . . 5 2 3 5 . . . 5 . . . . . 2 . . . 1 . . . . 2 Demolisher 1 | . . . . . . . . . . . . . . . . . . . . . . . . . . . . . 1 Specialist 2 | . . . . . . . . . . 2 . . . . . . . . . . . . . . . . . . . Hunter 8 | . . . . . . . 1 3 1 . . . . . . . . . . 1 . . . 2 . . . . . Programmer 23 | . . . . . . . . 3 . 2 . . . 3 . 4 2 . 4 . . . 2 . . . . 2 1 Heavy 1 | . . . . . . . . . . . . . . 1 . . . . . . . . . . . . . . . Behemoth 1 | . . . . . . . . . . . . . . . . . . . . . . . . 1 . . . . . Compactor 3 | . . . . . . . . . . . . 3 . . . . . . . . . . . . . . . . . Striker 4 | . . . . . . . . . . . . . . . . . . . . . . . . . . . . . 4 Executioner 1 | . . . . . . . . . . . . . . . . . . . . . . . . . . . . . 1 Zionite 8 | . . . . . 8 . . . . . . . . . . . . . . . . . . . . . . . . Assembled 4 | . . . . . 4 . . . . . . . . . . . . . . . . . . . . . . . . Thug 1 | . . . . . . . . . . . . . . . . . . . . 1 . . . . . . . . . Best Kill Streak 16 | 6 4 3 3 3 4 2 6 6 4 9 . 3 1 13 . 3 2 . 4 2 . 3 2 4 . . . 5 16 Combat Bots Only 16 | . 4 3 3 3 3 . 4 6 4 9 . 3 . 13 . 3 2 . 4 2 . . 2 4 . . . 5 16 Max Kills in Single Turn 4 | 1 2 1 1 3 2 1 1 1 2 2 . 1 1 3 . 1 1 . 2 1 1 1 1 1 . . . 1 4 Gunslinging 1 | . . . . . . . . . . . . . . . . . . . 1 . . . . . . . . . . Exploded 4 | . 2 . . 3 1 . . . 2 2 . . . 3 . 1 . . . . . . . . . . . . 4 Melee . | . . . . . . . . . . . . . . . . . . . . . . . . . . . . . . Uniques/NPCs Destroyed 5 | . . . . . 4 . . . . . . . . . . . . . . . 1 . . . . . . . . 8R-AWN (-9/Exiles) EX-BIN (-9/Exiles) EX-HEX (-9/Exiles) EX-DEC (-9/Exiles) A7 (-5/Cetus) Combat | -11 -10 -10 -9 -9 -9 -8 -8 -8 -8 -8 -7 -7 -7 -7 -6 -6 -5 -5 -5 -5 -5 -5 -5 -5 -4 -4 -4 -4 -3 -------- Run | Yrd Mat Min Mat Min Exi Min Mat Gar Mat Gar Fac Was Fac Gar Fac Gar Fac Was Fac Ext Cet Arc Hub Gar Fac Was Fac Gar Res Hostile Shots Fired 1927 | . 84 20 6 4 161 . 41 149 25 127 . . 18 228 . 45 24 . 229 82 12 . 13 204 3 . . 183 269 Missed 555 | . 24 5 3 1 47 . 10 37 8 41 . . 7 57 . 16 6 . 68 23 5 . 7 64 1 . . 57 68 Hits 1372 | . 60 15 3 3 114 . 31 112 17 86 . . 11 171 . 29 18 . 161 59 7 . 6 140 2 . . 126 201 Melee 71 | . . . . . 3 . . . . . . . . . . 1 . . . . . . . 7 . . . . 60 Projectile 1301 | . 60 15 3 3 111 . 31 112 17 86 . . 11 171 . 28 18 . 161 59 7 . 6 133 2 . . 126 141 AOE 10 | . . . . 1 . . . . . . . . . . . 1 . . . . . . . . . . . . 8 Critical Strikes 113 | . . . . . 46 . . 9 1 3 . . . 8 . 2 . . 4 2 1 . . 8 . . . 7 22 Part Disruptions 2 | . . . . . . . . . . . . . . 1 . . . . . . . . . . . . . 1 . Damage Taken 25592 | . 794 172 18 41 2405 . 341 1070 270 933 9 . 76 2779 . 777 131 . 2756 1352 88 . 69 2278 49 . . 1751 7433 Core 3244 | . 167 16 5 . 363 . 49 79 6 104 . . 5 183 . 66 . . 268 214 . . . 230 . . . 140 1349 Absorbed by Shields 3222 | . . . 8 15 160 . 130 510 17 202 . . . 79 . . 117 . 72 229 92 . 72 484 . . . 601 434 Reduced by Siege Mode 1142 | . . . . . . . . . . . . . . 201 . 16 6 . 129 42 . . 6 27 . . . 34 681 Ignored by Resistances 16 | . . . . . . . . . . . . . . . . 16 . . . . . . . . . . . . . Regen/Repaired (Parts) 106 | . . . . . . . . . . . . . . . . . 106 . . . . . . . . . . . . Core Remaining (%) 58 | 100 . 26 . . . 8 . . . 56 . . . 73 . 92 . . . . . . . 28 . . . 87 . Volleys Fired 1464 | 26 86 9 12 3 202 14 40 149 39 121 8 22 2 127 . 62 24 7 59 90 11 . 12 84 16 7 . 117 115 Largest 2 | 2 2 2 2 2 2 2 2 2 2 2 1 2 2 2 . 2 2 1 2 2 1 . 2 2 1 1 . 2 2 Hottest 240 | 70 136 136 136 136 136 91 91 96 56 98 5 60 60 93 . 110 125 7 125 128 80 . 125 170 90 7 . 170 240 Shots Fired 2159 | 52 168 18 24 5 276 17 80 237 69 194 8 37 3 191 . 88 28 7 83 102 11 2 20 134 16 7 1 161 120 Gun 1261 | 52 144 . . . 202 3 40 95 60 95 . 30 2 151 . 48 4 . 48 36 11 1 11 50 . . . 142 36 Cannon 745 | . 22 18 24 4 69 14 40 142 . 87 . . . 27 . 31 15 . 23 65 . 1 9 70 15 . 1 3 65 Launcher 35 | . 2 . . 1 5 . . . 4 2 . . . 3 . 2 . . . . . . . . . . . . 16 Special 118 | . . . . . . . . . 5 10 8 7 1 10 . 7 9 7 12 1 . . . 14 1 7 . 16 3 Kinetic 1083 | 26 78 . . . 202 3 40 95 60 95 . 30 2 151 . 48 4 . 48 36 . . 11 20 . . . 118 16 Thermal 913 | 26 88 18 24 4 69 14 40 142 . 87 . . . 27 . 31 15 . 23 65 11 2 9 100 15 . 1 27 75 Explosive 35 | . 2 . . 1 5 . . . 4 2 . . . 3 . 2 . . . . . . . . . . . . 16 Electromagnetic 10 | . . . . . . . . . . . . . . . . . . . . . . . . . . . . . 10 Robot Hit Streak 23 | 7 15 9 11 2 12 7 15 9 14 17 2 7 2 23 . 7 8 7 8 7 5 . 9 13 4 6 . 15 14 Robot Miss Streak 6 | 3 5 2 2 2 6 1 3 5 4 4 3 1 1 5 . 4 1 1 4 5 2 . 3 4 . 1 . 6 2 Penetration Max 2 | . . . . . 1 . . 1 1 2 . 1 . 1 . 1 . . 1 1 . . 1 . . . . . . Secondary Targets 12 | . 2 . . . . . . . . . . . . 6 . 1 . . 2 . . . . . . . . . 1 Max Gunslinging Chain 1 | . 1 . . . . . . . . . . . . 1 . 1 . . 1 . . . . . . . . . 1 Capacitor 8 | . . . . . . . . . . . . . . . . . . . . . . . . . . . . . 8 Shots Hit Robots 1154 | 36 91 12 15 2 152 12 53 96 40 81 3 26 2 98 . 39 14 6 41 37 12 18 11 81 1 6 . 103 66 Core Hits 547 | 11 44 7 7 3 45 4 27 53 24 48 . 5 1 53 . 19 4 . 21 19 4 8 7 34 . . . 54 45 Critical Kills 37 | . . . . . 5 . 1 . 1 3 . 3 1 3 . 6 . . 9 3 . . 1 1 . . . . . Critical Parts Destroyed 44 | . . . . . 13 . . 2 2 3 . 1 . 1 . 5 1 . 5 6 . . 2 1 . . . 1 1 Critical Strikes 108 | 3 5 . . . 18 . 1 2 3 6 . 9 1 4 . 13 1 . 14 12 2 5 4 2 . . . 1 2 Burn 8 | 3 5 . . . . . . . . . . . . . . . . . . . . . . . . . . . . Meltdown 2 | . . . . . . . 1 . . . . . . . . . . . . 1 . . . . . . . . . Destroy 91 | . . . . . 18 . . 2 3 6 . 9 1 4 . 13 1 . 14 11 . . 4 2 . . . 1 2 Impale 7 | . . . . . . . . . . . . . . . . . . . . . 2 5 . . . . . . . Melee Attacks 26 | . . . 1 . . . . . . . . . . . . . . . . 1 4 20 . . . . . . . Impact . | . . . . . . . . . . . . . . . . . . . . . . . . . . . . . . Slashing . | . . . . . . . . . . . . . . . . . . . . . . . . . . . . . . Piercing 25 | . . . . . . . . . . . . . . . . . . . . 1 4 20 . . . . . . . Sneak Attacks 18 | . . . 1 . . . . . . . . . . . . . . . . 1 4 12 . . . . . . . Combat Hostiles . | . . . . . . . . . . . . . . . . . . . . . . . . . . . . . . Follow-up Attacks . | . . . . . . . . . . . . . . . . . . . . . . . . . . . . . . Damage Inflicted 29910 | 388 1244 279 287 143 2795 241 1060 2232 1136 2108 . 577 14 2436 . 903 189 . 787 1251 464 1138 589 2455 . . . 1690 5504 Guns 14869 | 388 979 . . . 2166 30 450 1293 784 1365 . 577 14 1853 . 470 33 . 425 418 228 24 405 1101 . . . 1653 213 Cannons 7994 | . 163 256 285 40 470 203 530 931 . 597 . . . 117 . 225 156 . 232 715 . . 184 1317 . . . 37 1536 Explosions 5345 | . 94 . . 103 127 . . . 350 146 . . . 466 . 208 . . 110 . . . . . . . . . 3741 Melee 1423 | . . . . . . . . . . . . . . . . . . . . 73 236 1114 . . . . . . . Ramming 279 | . 8 23 2 . 32 8 80 8 2 . . . . . . . . . 20 45 . . . 37 . . . . 14 Kinetic 13097 | 138 373 . . . 2166 30 450 1293 784 1365 . 577 14 1853 . 470 33 . 425 418 . . 405 461 . . . 1629 213 Thermal 9416 | 250 769 256 285 40 470 203 530 931 . 597 . . . 117 . 225 156 . 232 715 228 24 184 1957 . . . 61 1186 Explosive 5345 | . 94 . . 103 127 . . . 350 146 . . . 466 . 208 . . 110 . . . . . . . . . 3741 Electromagnetic 350 | . . . . . . . . . . . . . . . . . . . . . . . . . . . . . 350 Impact . | . . . . . . . . . . . . . . . . . . . . . . . . . . . . . . Slashing . | . . . . . . . . . . . . . . . . . . . . . . . . . . . . . . Piercing 1423 | . . . . . . . . . . . . . . . . . . . . 73 236 1114 . . . . . . . Highest Corruption 29 | . . . 2 2 2 . . 5 5 6 . 25 25 29 . 5 1 12 23 29 29 29 4 4 . 15 15 20 14 Average Corruption 11 | . . . 2 2 1 . . 3 5 5 . 17 25 26 . 1 1 7 17 24 29 17 4 4 . 6 15 16 10 Corruption Purged 27 | . . . . . 2 . . . . . . . . . . . . . . . . 25 . . . . . . . Corruption Blocked . | . . . . . . . . . . . . . . . . . . . . . . . . . . . . . . Effects 669 | . . . 1 7 30 . . 1 14 47 . 15 4 98 . 11 . 2 48 89 25 25 22 33 . 5 17 79 96 Message Errors 172 | . . . . . 7 . . . 3 11 . 5 1 24 . 4 . . 9 20 7 11 4 8 . 1 6 25 26 Matter Fused 165 | . . . 1 3 8 . . . 4 14 . 2 2 20 . 2 . . 15 21 5 4 4 9 . 1 4 16 30 Heat Flow Errors 77 | . . . . 1 6 . . . 2 7 . . . 12 . 2 . 1 7 10 3 1 3 3 . . 1 9 9 Energy Discharges 63 | . . . . . 2 . . 1 2 2 . 1 1 8 . 1 . . 6 10 3 2 2 5 . . 1 5 11 Parts Rejected 9 | . . . . . . . . . . . . 1 . 1 . . . . 1 2 . 1 . 1 . 1 . . 1 Parts Fused 4 | . . . . 1 . . . . . . . . . . . . . . . 1 1 . . . . . . . 1 Data Loss (minor) 76 | . . . . 2 5 . . . . 4 . 2 . 11 . 1 . . 5 6 3 4 4 2 . 2 3 14 8 Data Loss (major) 22 | . . . . . . . . . 1 1 . 1 . 3 . . . 1 . 6 . . 1 2 . . 1 4 1 Misfires 25 | . . . . . . . . . 1 . . 1 . 2 . 1 . . 3 6 . 2 . 3 . . 1 2 3 Alerts 22 | . . . . . 1 . . . . 5 . 1 . 4 . . . . . 1 2 . 4 . . . . 1 3 Misdirections 11 | . . . . . . . . . . . . . . 3 . . . . 2 3 1 . . . . . . 1 1 Weapon Failures 23 | . . . . . 1 . . . 1 3 . 1 . 10 . . . . . 3 . . . . . . . 2 2 Overload Shots 1 | . . . . . . . . . . . . . . . . . . . . . . . . . . . . . 1 Overflow Damage 729 | . . . 2 10 1 10 16 55 20 . . . . . . 13 . . . 5 . 317 43 28 . . . . 209 Projectiles 214 | . . . 2 10 1 10 16 55 . . . . . . . . . . . 5 . . 43 28 . . . . 44 Explosions 198 | . . . . . . . . . 20 . . . . . . 13 . . . . . . . . . . . . 165 Melee 317 | . . . . . . . . . . . . . . . . . . . . . . 317 . . . . . . . Knockbacks 2 | . . . . . 1 . . . . . . . . . . . . . . 1 . . . . . . . . . Impact 2 | . . . . . 1 . . . . . . . . . . . . . . 1 . . . . . . . . . Kinetic . | . . . . . . . . . . . . . . . . . . . . . . . . . . . . . . Secondary . | . . . . . . . . . . . . . . . . . . . . . . . . . . . . . . Self-Inflicted Damage 808 | . . . . . 81 . . . 45 . . . . . . 48 . . . . . . . . . . . . 634 Shots 12 | . . . . . 2 . . . 1 . . . . . . 1 . . . . . . . . . . . . 8 Rammed 26 | . . 3 1 . 6 1 5 1 . . . . . . . . . . 2 2 . . . 3 . . . . 2 Targets Rammed 30 | 1 1 3 1 . 6 2 5 1 1 . . . . . . . . . 2 2 . . . 3 . . . . 2 Kicked 2 | 1 1 . . . . . . . . . . . . . . . . . . . . . . . . . . . . Crushed 2 | . . . . . . 1 . . 1 . . . . . . . . . . . . . . . . . . . . Highest Temperature 341 | 140 341 324 270 155 315 54 23 114 178 264 . . . 266 . 215 252 245 260 294 153 111 173 288 40 . 117 266 243 Average Temperature 85 | 57 100 163 99 78 85 17 9 48 78 116 . . . 86 . 37 89 129 102 86 77 42 75 99 12 . 45 73 83 Received Heat Transfer 4032 | . 435 66 . . . . 126 452 105 180 . . 18 484 . 90 . . . 212 8 . 20 947 9 . . 343 537 Effects 10 | . 3 3 . . . . . . . . . . . . . . . . . 1 . . . . . . . 3 . Energy Bleed 2 | . 1 1 . . . . . . . . . . . . . . . . . . . . . . . . . . . Interference 6 | . . 2 . . . . . . . . . . . . . . . . . 1 . . . . . . . 3 . Matter Decay 1 | . 1 . . . . . . . . . . . . . . . . . . . . . . . . . . . . Short Circuit 1 | . 1 . . . . . . . . . . . . . . . . . . . . . . . . . . . . Siege Activations 23 | . . . . . . . . . . . . . . 3 . 3 1 . 3 2 . . 1 4 . . . 2 4 Total Turns 587 | . . . . . . . . . . . . . . 93 . 55 8 . 42 17 . . 7 97 . . . 139 129 Longest Duration 100 | . . . . . . . . . . . . . . 37 . 40 8 . 21 15 . . 7 44 . . . 100 61 Martial Activations . | . . . . . . . . . . . . . . . . . . . . . . . . . . . . . . Shielding Activations . | . . . . . . . . . . . . . . . . . . . . . . . . . . . . . . Robots Disrupted . | . . . . . . . . . . . . . . . . . . . . . . . . . . . . . . Combat Hostiles . | . . . . . . . . . . . . . . . . . . . . . . . . . . . . . . Robots Corrupted 3 | . . . . . . . . . . . . . . . . . . . . . . . . . . . . . 3 Combat Hostiles 3 | . . . . . . . . . . . . . . . . . . . . . . . . . . . . . 3 Parts Fried 6 | . . . . . . . . . . . . . . 1 . . . . . . 1 . . . . . . . 4 Impact Corruptions . | . . . . . . . . . . . . . . . . . . . . . . . . . . . . . . Robots Melted 2 | . . . . . . . 1 . . . . . . . . . . . . 1 . . . . . . . . . Combat Hostiles 1 | . . . . . . . . . . . . . . . . . . . . 1 . . . . . . . . . Parts Melted 18 | . 2 1 1 . 2 2 3 1 . 1 . . . . . 2 . . 1 . . . . 1 . . . . 1 Heat Transferred 13018 | 962 2183 444 518 74 795 370 962 1512 . 1036 . . . 185 . 240 148 . 259 1074 296 37 . 776 . . . 37 1110 Parts Sabotaged . | . . . . . . . . . . . . . . . . . . . . . . . . . . . . . . Parts Stolen . | . . . . . . . . . . . . . . . . . . . . . . . . . . . . . . Parts Stripped . | . . . . . . . . . . . . . . . . . . . . . . . . . . . . . . Power Chain Reactions . | . . . . . . . . . . . . . . . . . . . . . . . . . . . . . . Alert | -11 -10 -10 -9 -9 -9 -8 -8 -8 -8 -8 -7 -7 -7 -7 -6 -6 -5 -5 -5 -5 -5 -5 -5 -5 -4 -4 -4 -4 -3 ------- Run | Yrd Mat Min Mat Min Exi Min Mat Gar Mat Gar Fac Was Fac Gar Fac Gar Fac Was Fac Ext Cet Arc Hub Gar Fac Was Fac Gar Res Maximum Alert Level 5 | . . . . . . . . 4 3 5 3 1 . 4 2 5 3 1 2 1 . . 3 4 2 . . 3 2 Low Security (%) 42 | 100 100 100 100 100 . 100 100 13 . . . 80 100 5 . . . . 52 98 100 100 30 . . 100 100 12 9 Level 1 14 | . . . . . . . . 17 . . . 19 . 16 . . . 100 44 1 . . 7 . . . . 40 70 Level 2 15 | . . . . . . . . 35 25 14 43 . . 42 100 13 . . 3 . . . 41 17 100 . . 17 20 Level 3 15 | . . . . . . . . 6 74 36 56 . . 24 . 11 100 . . . . . 21 66 . . . 29 . Level 4 9 | . . . . . . . . 27 . 34 . . . 11 . 51 . . . . . . . 15 . . . . . Level 5 2 | . . . . . . . . . . 14 . . . . . 23 . . . . . . . . . . . . . High Security . | . . . . . . . . . . . . . . . . . . . . . . . . . . . . . . Max Security . | . . . . . . . . . . . . . . . . . . . . . . . . . . . . . . Peak Influence 1961 | 10 112 122 79 75 . 5 128 1277 782 1785 936 226 53 1324 695 1961 1029 275 426 229 138 188 920 1256 652 152 64 940 693 Initial 1029 | . . 8 25 . . . . 24 622 503 936 226 53 . 695 458 1029 275 143 184 66 26 . 613 652 152 64 . 528 Average 446 | 1 41 34 25 8 . . 62 632 700 1098 797 154 37 658 676 1264 900 243 205 86 66 79 454 880 541 122 11 470 327 Influence Increases 14440 | 35 539 312 139 75 . 25 340 1313 434 1362 87 . 7 1504 . 1743 75 . 703 912 262 273 1200 830 14 . 31 1130 1095 Destroy 0b10 Robot/C 7020 | . 340 220 80 60 . . 220 600 220 680 40 . . 720 . 900 40 . 300 460 160 80 440 340 . . . 520 600 Destroy 0b10 Robot/NC 325 | 35 35 . 15 . . 25 30 . 30 5 5 . 5 . . . . . 20 30 10 45 35 . . . . . . Destroy Leader 874 | . 84 40 24 10 . . 88 20 86 30 12 . . 20 . 60 10 . 50 56 . . 94 30 . . . 60 100 Allied During Kill 1395 | . . 22 4 . . . . 35 . 159 26 . 2 57 . 254 . . 7 119 86 114 431 12 . . . 51 16 Successful Hack 248 | . 9 . . . . . 2 37 . . 4 . . 16 . . 5 . 14 36 . . 10 22 . . 16 36 41 Select Force Hacks 110 | . 60 . . . . . . . . . . . . . . . . . . . . . 50 . . . . . . Disable Machine 300 | . . 15 . . . . . . 15 . . . . . . 15 . . 60 15 . 30 60 30 . . 15 . 45 Anti-Garrison Action 2200 | . . . . . . . . 450 . 300 . . . 500 . 400 . . . . . . . 250 . . . 300 . Destroy Structure 1083 | . 11 . 1 5 . . . 81 38 113 . . . 101 . 39 20 . 162 76 6 4 80 71 14 . . 103 158 Lose Combat Pursuer 885 | . . 15 15 . . . . 90 45 75 . . . 90 . 75 . . 90 120 . . . 75 . . . 60 135 Influence Decreases 13795 | 35 517 268 205 75 . 25 302 74 937 351 1224 572 83 180 669 437 1248 583 530 1171 315 337 326 463 821 344 123 190 1390 Entered New Map 6489 | . . 14 41 . . . . 14 655 271 849 422 23 . 629 197 932 513 62 194 53 40 2 263 591 284 28 . 412 Time Decay 4972 | 35 477 234 144 75 . 25 302 . 262 . 80 150 40 . 40 . 286 70 398 518 222 277 284 . 230 60 95 . 668 Lost Part 730 | . 40 . . . . . . 20 . 20 . . . 60 . 20 . . 50 90 . . . 80 . . . 70 280 Lost Ally 1179 | . . 20 20 . . . . 40 20 60 20 . 20 120 . 220 30 . 20 219 40 20 40 120 . . . 120 30 Purge Threat 425 | . . . . . . . . . . . 275 . . . . . . . . 150 . . . . . . . . . Squads Dispatched 47 | . 4 . . . . . 3 . 1 . 1 . 2 . . . 2 . 12 5 . . 9 . . . 2 . 6 Investigation 13 | . 3 . . . . . . . . . . . . . . . . . 1 . . . 4 . . . 1 . 4 Extermination 4 | . . . . . . . . . . . . . . . . . 1 . 2 . . . 1 . . . . . . Reinforcement 18 | . 1 . . . . . . . 1 . 1 . . . . . . . 5 5 . . 2 . . . 1 . 2 Assault 3 | . . . . . . . . . . . . . . . . . 1 . . . . . 2 . . . . . . Garrison 9 | . . . . . . . 3 . . . . . 2 . . . . . 4 . . . . . . . . . . Intercept . | . . . . . . . . . . . . . . . . . . . . . . . . . . . . . . Searches Triggered . | . . . . . . . . . . . . . . . . . . . . . . . . . . . . . . Construction Impeded 7 | . . . . . . . . . . . . . . . . . . . 2 3 . . 1 . . . . . 1 Haulers Reinforced 1 | . . . . . . . . . . . . . . . . . . . . . . . . . . . . . 1 Active Scanning Responses . | . . . . . . . . . . . . . . . . . . . . . . . . . . . . . . Cargo Convoy Interrupts . | . . . . . . . . . . . . . . . . . . . . . . . . . . . . . . Stealth | -11 -10 -10 -9 -9 -9 -8 -8 -8 -8 -8 -7 -7 -7 -7 -6 -6 -5 -5 -5 -5 -5 -5 -5 -5 -4 -4 -4 -4 -3 --------- Run | Yrd Mat Min Mat Min Exi Min Mat Gar Mat Gar Fac Was Fac Gar Fac Gar Fac Was Fac Ext Cet Arc Hub Gar Fac Was Fac Gar Res Distress Signals 28 | . 1 . 1 . . . 1 2 3 1 . . . . . . . . 1 4 2 . 1 . . . . . 11 Communications Jammed 2 | . . . . . . . . . . . . . . . . . . . . . . . . . . . . . 2 Distress Signals 2 | . . . . . . . . . . . . . . . . . . . . . . . . . . . . . 2 Times Spotted 548 | . 34 10 8 5 14 . 13 31 20 42 2 5 2 49 . 41 14 7 31 34 9 18 17 37 1 6 1 41 56 Peak Tracking Total 12 | . 5 3 3 3 10 . 2 5 5 4 1 3 1 11 . 5 5 3 7 5 5 1 5 7 1 2 1 5 12 Tactical Retreats 38 | . . 1 1 . 2 . . 3 1 3 . . . 2 . 4 . 1 3 6 . . . 4 . . . 4 3 ECM-based Alert Blocks 1 | . . . . . . . . . . . . . . . . . . . . . . . . . . . . . 1 Traps | -11 -10 -10 -9 -9 -9 -8 -8 -8 -8 -8 -7 -7 -7 -7 -6 -6 -5 -5 -5 -5 -5 -5 -5 -5 -4 -4 -4 -4 -3 ------- Run | Yrd Mat Min Mat Min Exi Min Mat Gar Mat Gar Fac Was Fac Gar Fac Gar Fac Was Fac Ext Cet Arc Hub Gar Fac Was Fac Gar Res Traps Triggered 23 | . 1 . 1 . . . 1 1 . 1 1 . . 2 . 2 2 . 1 2 . . . 1 1 . 1 4 1 Indirectly . | . . . . . . . . . . . . . . . . . . . . . . . . . . . . . . Trap Hack Attempts 17 | . . . 17 . . . . . . . . . . . . . . . . . . . . . . . . . . Triggered . | . . . . . . . . . . . . . . . . . . . . . . . . . . . . . . Disarmed . | . . . . . . . . . . . . . . . . . . . . . . . . . . . . . . Reprogrammed 1 | . . . 1 . . . . . . . . . . . . . . . . . . . . . . . . . . Reused . | . . . . . . . . . . . . . . . . . . . . . . . . . . . . . . Traps Extracted . | . . . . . . . . . . . . . . . . . . . . . . . . . . . . . . Installed . | . . . . . . . . . . . . . . . . . . . . . . . . . . . . . . Triggered . | . . . . . . . . . . . . . . . . . . . . . . . . . . . . . . Machines | -11 -10 -10 -9 -9 -9 -8 -8 -8 -8 -8 -7 -7 -7 -7 -6 -6 -5 -5 -5 -5 -5 -5 -5 -5 -4 -4 -4 -4 -3 ---------- Run | Yrd Mat Min Mat Min Exi Min Mat Gar Mat Gar Fac Was Fac Gar Fac Gar Fac Was Fac Ext Cet Arc Hub Gar Fac Was Fac Gar Res Machines Disabled 74 | . . 1 . . 18 . . 8 1 5 . . . 8 . 8 . . 4 2 . 2 4 5 . . 1 4 3 Max in Single Turn 2 | . . 1 . . 2 . . 2 1 1 . . . 1 . 1 . . 2 1 . . . 1 . . 1 1 1 Garrison Access 1 | . . . . . . . . . . . . . . . . . . . . . . . 1 . . . . . . Garrison Relay 27 | . . . . . . . . 4 . 4 . . . 6 . 6 . . . . . . . 3 . . . 4 . Phase Generator 2 | . . . . . . . . 1 . . . . . . . 1 . . . . . . . . . . . . . Network Hub 2 | . . . . . . . . . . . . . . . . . . . . . . . 2 . . . . . . Machines Repaired . | . . . . . . . . . . . . . . . . . . . . . . . . . . . . . . Machines Dismantled . | . . . . . . . . . . . . . . . . . . . . . . . . . . . . . . Machines Sabotaged 1 | . . . . . . . . . . . . . . . . . . . . . . . 1 . . . . . . Overloaded Fab Kills . | . . . . . . . . . . . . . . . . . . . . . . . . . . . . . . Hacking | -11 -10 -10 -9 -9 -9 -8 -8 -8 -8 -8 -7 -7 -7 -7 -6 -6 -5 -5 -5 -5 -5 -5 -5 -5 -4 -4 -4 -4 -3 --------- Run | Yrd Mat Min Mat Min Exi Min Mat Gar Mat Gar Fac Was Fac Gar Fac Gar Fac Was Fac Ext Cet Arc Hub Gar Fac Was Fac Gar Res Machines Accessed 67 | . 9 . 2 . 2 . 5 3 2 4 1 . 1 2 1 1 2 . 5 9 . . 6 2 . . 3 2 5 Terminals 50 | . 7 . 1 . . . 3 3 1 4 . . . 2 . 1 2 . 4 9 . . 5 2 . . 1 2 3 Fabricators 4 | . . . . . . . . . . . . . . . . . . . 1 . . . . . . . 1 . 2 Repair Stations . | . . . . . . . . . . . . . . . . . . . . . . . . . . . . . . Recycling Units 2 | . 2 . . . . . . . . . . . . . . . . . . . . . . . . . . . . Scanalyzers 3 | . . . 1 . . . 1 . . . 1 . . . . . . . . . . . . . . . . . . Garrison Access 6 | . . . . . . . 1 . 1 . . . 1 . 1 . . . . . . . 1 . . . 1 . . Total Hacks 171 | . 27 . 4 . 3 . 15 8 2 7 4 . 1 5 1 3 5 . 13 17 . . 10 8 . . 14 9 15 Successful 82 | . 13 . 2 . 3 . 8 3 1 1 3 . 1 1 1 2 2 . 6 8 . . 6 4 . . 8 3 6 Failed 88 | . 14 . 1 . . . 7 5 1 6 1 . . 4 . 1 3 . 7 9 . . 4 4 . . 6 6 9 Catastrophic 23 | . 4 . . . . . 2 1 1 . . . . 1 . 1 1 . 3 1 . . 2 . . . . 3 3 Database Lockouts 1 | . . . 1 . . . . . . . . . . . . . . . . . . . . . . . . . . Manual 81 | . 22 . 1 . 1 . 7 1 1 . . . . 1 . 2 1 . 3 . 1 . 8 6 . . 9 7 10 Terminals 136 | . 25 . 1 . . . 7 8 1 7 . . . 5 . 3 5 . 11 17 . . 9 8 . . 10 9 10 Fabricators 8 | . . . . . . . . . . . . . . . . . . . 2 . . . . . . . 1 . 5 Repair Stations . | . . . . . . . . . . . . . . . . . . . . . . . . . . . . . . Recycling Units 2 | . 2 . . . . . . . . . . . . . . . . . . . . . . . . . . . . Scanalyzers 14 | . . . 3 . . . 7 . . . 4 . . . . . . . . . . . . . . . . . . Garrison Access 8 | . . . . . . . 1 . 1 . . . 1 . 1 . . . . . . . 1 . . . 3 . . Terminal Hacks 34 | . 4 . . . 3 . . 3 . 1 . . . 1 . 1 2 . 4 8 . . . 2 . . 2 2 1 Record 2 | . . . . . 2 . . . . . . . . . . . . . . . . . . . . . . . . Robot Schematic 1 | . 1 . . . . . . . . . . . . . . . . . . . . . . . . . . . . Robot Analysis 1 | . 1 . . . . . . . . . . . . . . . . . . . . . . . . . . . . Prototype ID Bank 3 | . 1 . . . . . . . . . . . . . . . 1 . 1 . . . . . . . . . . Open Door 7 | . . . . . . . . 1 . . . . . . . . . . 1 5 . . . . . . . . . Branch Access Points 2 | . . . . . . . . . . . . . . . . . 1 . 1 . . . . . . . . . . Emergency Access Points 4 | . . . . . . . . . . 1 . . . . . 1 . . . . . . . 1 . . . 1 . Terminal Index 3 | . 1 . . . . . . . . . . . . . . . . . . . . . . . . . 1 . 1 Unreport Threat 1 | . . . . . . . . . . . . . . . . . . . . 1 . . . . . . . . . Locate Traps 2 | . . . . . . . . . . . . . . . . . . . 1 1 . . . . . . . . . Zone Layout 2 | . . . . . . . . . . . . . . . . . . . . 1 . . . . . . 1 . . Garrison Registry 1 | . . . . . . . . . . . . . . . . . . . . . . . . . . . . 1 . Patrol Navigation 2 | . . . . . . . . 1 . . . . . 1 . . . . . . . . . . . . . . . Security Stations 2 | . . . . . . . . 1 . . . . . . . . . . . . . . . 1 . . . . . Proto ID Catalog 1 | . . . . . 1 . . . . . . . . . . . . . . . . . . . . . . . . Fabricator Hacks 2 | . . . . . . . . . . . . . . . . . . . . . . . . . . . 1 . 1 Network Status 2 | . . . . . . . . . . . . . . . . . . . . . . . . . . . 1 . 1 Repair Station Hacks . | . . . . . . . . . . . . . . . . . . . . . . . . . . . . . . Recycling Unit Hacks . | . . . . . . . . . . . . . . . . . . . . . . . . . . . . . . Scanalyzer 11 | . . . 2 . . . 6 . . . 3 . . . . . . . . . . . . . . . . . . Insert Component 2 | . . . . . . . 2 . . . . . . . . . . . . . . . . . . . . . . Analyze 3 | . . . . . . . 3 . . . . . . . . . . . . . . . . . . . . . . Retrieve Study 6 | . . . 2 . . . 1 . . . 3 . . . . . . . . . . . . . . . . . . Garrison Access Hacks 6 | . . . . . . . 1 . 1 . . . 1 . 1 . . . . . . . 1 . . . 1 . . Unlock Access 6 | . . . . . . . 1 . 1 . . . 1 . 1 . . . . . . . 1 . . . 1 . . Unauthorized Hacks 29 | . 9 . . . . . 1 . . . . . . . . 1 . . 2 . . . 5 2 . . 4 1 4 Terminals 25 | . 7 . . . . . 1 . . . . . . . . 1 . . 2 . . . 5 2 . . 3 1 3 Track 2 | . . . . . . . . . . . . . . . . . . . . . . . 1 . . . 1 . . Assimilate 1 | . . . . . . . . . . . . . . . . . . . . . . . . . . . . . 1 Botnet 11 | . 2 . . . . . . . . . . . . . . 1 . . 2 . . . . 2 . . 1 1 2 Operators 1 | . . . . . . . . . . . . . . . . . . . . . . . . . . . 1 . . Skim 6 | . 5 . . . . . 1 . . . . . . . . . . . . . . . . . . . . . . Sabotage 4 | . . . . . . . . . . . . . . . . . . . . . . . 4 . . . . . . Fabricators 1 | . . . . . . . . . . . . . . . . . . . . . . . . . . . . . 1 Liberate 1 | . . . . . . . . . . . . . . . . . . . . . . . . . . . . . 1 Repair Stations . | . . . . . . . . . . . . . . . . . . . . . . . . . . . . . . Recycling Units 2 | . 2 . . . . . . . . . . . . . . . . . . . . . . . . . . . . Tunnel 2 | . 2 . . . . . . . . . . . . . . . . . . . . . . . . . . . . Scanalyzers . | . . . . . . . . . . . . . . . . . . . . . . . . . . . . . . Garrison Access 1 | . . . . . . . . . . . . . . . . . . . . . . . . . . . 1 . . Reprogram 1 | . . . . . . . . . . . . . . . . . . . . . . . . . . . 1 . . Data Cores Recovered 2 | . 2 . . . . . . . . . . . . . . . . . . . . . . . . . . . . Used 2 | . 2 . . . . . . . . . . . . . . . . . . . . . . . . . . . . Hacking Detections 51 | . 7 . 2 . . . 5 2 1 4 . . 1 2 1 1 2 . 4 5 . . 4 2 . . 1 2 5 Full Trace Events 2 | . . . . . . . . . . . . . . . . . . . 1 . . . . . . . . . 1 Feedback Events . | . . . . . . . . . . . . . . . . . . . . . . . . . . . . . . Feedback Blocked . | . . . . . . . . . . . . . . . . . . . . . . . . . . . . . . Robot Schematics Acquired 1 | . 1 . . . . . . . . . . . . . . . . . . . . . . . . . . . . Robots Built . | . . . . . . . . . . . . . . . . . . . . . . . . . . . . . . Authchips . | . . . . . . . . . . . . . . . . . . . . . . . . . . . . . . Time . | . . . . . . . . . . . . . . . . . . . . . . . . . . . . . . Total Robot Build Rating . | . . . . . . . . . . . . . . . . . . . . . . . . . . . . . . Part Schematics Acquired 1 | . . . . . . . 1 . . . . . . . . . . . . . . . . . . . . . . Parts Built . | . . . . . . . . . . . . . . . . . . . . . . . . . . . . . . Authchips . | . . . . . . . . . . . . . . . . . . . . . . . . . . . . . . Time . | . . . . . . . . . . . . . . . . . . . . . . . . . . . . . . Total Part Build Rating . | . . . . . . . . . . . . . . . . . . . . . . . . . . . . . . Part Studies Acquired 6 | . . . 2 . . . 1 . . . 3 . . . . . . . . . . . . . . . . . . Parts Repaired . | . . . . . . . . . . . . . . . . . . . . . . . . . . . . . . Time . | . . . . . . . . . . . . . . . . . . . . . . . . . . . . . . Parts Recycled . | . . . . . . . . . . . . . . . . . . . . . . . . . . . . . . Recycled Matter . | . . . . . . . . . . . . . . . . . . . . . . . . . . . . . . Retrieved Matter . | . . . . . . . . . . . . . . . . . . . . . . . . . . . . . . Retrieved Components . | . . . . . . . . . . . . . . . . . . . . . . . . . . . . . . Parts Scanalyzed 2 | . . . . . . . 2 . . . . . . . . . . . . . . . . . . . . . . Part Schematics Acquired 1 | . . . . . . . 1 . . . . . . . . . . . . . . . . . . . . . . Parts Damaged . | . . . . . . . . . . . . . . . . . . . . . . . . . . . . . . Bothacking | -11 -10 -10 -9 -9 -9 -8 -8 -8 -8 -8 -7 -7 -7 -7 -6 -6 -5 -5 -5 -5 -5 -5 -5 -5 -4 -4 -4 -4 -3 ------------ Run | Yrd Mat Min Mat Min Exi Min Mat Gar Mat Gar Fac Was Fac Gar Fac Gar Fac Was Fac Ext Cet Arc Hub Gar Fac Was Fac Gar Res Used RIF Installer 8 | . . . . . . . . 1 . 1 . . . 2 . 1 . . . . . . . 1 . . . 2 . Coupler Efficiency 1 | . . . . . . . . . . . . . . . . 1 . . . . . . . . . . . . . Hotswap 1 | . . . . . . . . . . . . . . 1 . . . . . . . . . . . . . . . Code Merge 1 | . . . . . . . . . . . . . . . . . . . . . . . . . . . . 1 . Zone Cloak 2 | . . . . . . . . . . . . . . 1 . . . . . . . . . 1 . . . . . Robot Detection 1 | . . . . . . . . . . 1 . . . . . . . . . . . . . . . . . . . Autooverride 1 | . . . . . . . . . . . . . . . . . . . . . . . . . . . . 1 . Robots Hacked 73 | . . . . . . . . . 4 1 1 6 1 8 . 5 6 5 7 . . . . 8 1 6 . 9 5 Non-combat 10 | . . . . . . . . . 1 . 1 . . . . . 4 . 3 . . . . . 1 . . . . Combat 63 | . . . . . . . . . 3 1 . 6 1 8 . 5 2 5 4 . . . . 8 . 6 . 9 5 Autooverrided 4 | . . . . . . . . . . . . . . . . . . . . . . . . . . . . 1 3 Robot Hacks Applied 72 | . . . . . . . . . 4 1 3 6 1 8 . 5 6 5 8 . . . . 8 1 6 . 8 2 parse_system 1 | . . . . . . . . . . . . . . . . . . . 1 . . . . . . . . . . find_chute 2 | . . . . . . . . . . . . . . . . . 1 . . . . . . . 1 . . . . drop_inventory 4 | . . . . . . . . . . . . . . . . . 2 . 2 . . . . . . . . . . purge_threat 2 | . . . . . . . . . . . 2 . . . . . . . . . . . . . . . . . . map_route 1 | . . . . . . . . . 1 . . . . . . . . . . . . . . . . . . . . ignore_targets 17 | . . . . . . . . . . . . 6 . . . . . 5 . . . . . . . 6 . . . find_garrison 1 | . . . . . . . . . 1 . . . . . . . . . . . . . . . . . . . . scatter_targeting 1 | . . . . . . . . . . . . . . . . . . . . . . . . . . . . 1 . amplify_resonance 8 | . . . . . . . . . . . . . . 3 . 1 1 . 1 . . . . 1 . . . 1 . disable_weapons 1 | . . . . . . . . . . . . . . . . . . . . . . . . 1 . . . . . go_dormant 2 | . . . . . . . . . . . . . . . . . . . 2 . . . . . . . . . . overwrite_iff 7 | . . . . . . . . . 2 . . . . 1 . . . . 1 . . . . 2 . . . 1 . formatsys_low 2 | . . . . . . . . . . . 1 . . . . . 1 . . . . . . . . . . . . formatsys_high 23 | . . . . . . . . . . 1 . . 1 4 . 4 1 . 1 . . . . 4 . . . 5 2 Relay Couplers Released 106 | . . . . . . . . 18 . 18 . . . 23 . 22 . . . . . . 1 10 . . . 14 . Machine Destruction 106 | . . . . . . . . 18 . 18 . . . 23 . 22 . . . . . . 1 10 . . . 14 . Attached 30 | . . . . . . . . . 2 . 3 1 . 8 . 4 2 . 1 . . . 1 4 . 1 . 2 1 Merged Code Value 7 | . . . . . . . . . . . . . . . . . . . . . . . . . . . . 7 . Fabnet Peak Effective % . | . . . . . . . . . . . . . . . . . . . . . . . . . . . . . . Robots Rewired 30 | . . . . . . . . 2 . 13 . . . . . 4 . . . 11 . . . . . . . . . Allies Hacked 1 | . . . . . . . . . . . . . . . . . . . . . . . . . . . . 1 . Hacks Repelled . | . . . . . . . . . . . . . . . . . . . . . . . . . . . . . . Allies | -11 -10 -10 -9 -9 -9 -8 -8 -8 -8 -8 -7 -7 -7 -7 -6 -6 -5 -5 -5 -5 -5 -5 -5 -5 -4 -4 -4 -4 -3 -------- Run | Yrd Mat Min Mat Min Exi Min Mat Gar Mat Gar Fac Was Fac Gar Fac Gar Fac Was Fac Ext Cet Arc Hub Gar Fac Was Fac Gar Res Total Allies 85 | . . 3 . . . . . 2 2 14 1 . 1 5 . 10 2 . 2 17 5 . . 6 . . 2 7 6 Largest Group 13 | . . 3 1 . . . . 2 1 13 10 8 9 6 2 6 1 . 1 5 7 6 5 3 . . 2 4 2 Highest-Rated Group 666 | . . 40 16 . . . . 62 16 211 172 138 170 107 64 292 41 . 85 269 666 514 418 227 . . 92 194 131 Highest-Rated Ally 159 | . . 16 16 . . . . 31 16 24 24 24 32 32 32 95 41 . 85 159 152 96 96 96 . . 46 49 67 Total Orders 15 | . . 2 . . . . . 2 . . . . . . . 6 1 . . 2 . 2 . . . . . . . STAY 7 | . . 1 . . . . . 1 . . . . . . . 3 . . . 1 . 1 . . . . . . . FOLLOW 7 | . . 1 . . . . . 1 . . . . . . . 3 . . . 1 . 1 . . . . . . . AID 1 | . . . . . . . . . . . . . . . . . 1 . . . . . . . . . . . . Ally Attacks 803 | . . 31 5 . . . . 35 6 38 22 105 2 36 . 126 2 . 17 120 47 19 106 20 . . . 56 10 Total Damage 21866 | . . 194 57 . . . . 508 57 620 341 2255 82 861 . 4652 58 . 703 2827 1362 616 3619 557 . . . 1764 733 Kills 156 | . . 7 . . . . . 5 . 3 3 3 1 11 . 35 . . 8 22 11 4 26 1 . . . 11 5 Allies Corrupted 5 | . . . . . . . . . . . . . . . . . . . . . . . 1 . . . . 4 . Allies Melted . | . . . . . . . . . . . . . . . . . . . . . . . . . . . . . . Turrets Deployed 1 | . . . . . . . . . . . . . . . . 1 . . . . . . . . . . . . . Intel | -11 -10 -10 -9 -9 -9 -8 -8 -8 -8 -8 -7 -7 -7 -7 -6 -6 -5 -5 -5 -5 -5 -5 -5 -5 -4 -4 -4 -4 -3 ------- Run | Yrd Mat Min Mat Min Exi Min Mat Gar Mat Gar Fac Was Fac Gar Fac Gar Fac Was Fac Ext Cet Arc Hub Gar Fac Was Fac Gar Res Active Infowar (turns) 9137 | 90 659 1493 432 733 1015 . . . . . . . . . 89 278 . . . . . . . 1 493 134 426 1709 1585 Traps 2 | . . . . . . . . . . . . . . . . . . . . . . . . . . . . . 2 Seismic 4422 | 90 659 1493 432 733 1015 . . . . . . . . . . . . . . . . . . . . . . . . Jamming 4711 | . . . . . . . . . . . . . . . 89 278 . . . . . . . 1 493 134 426 1709 1581 ECM 9 | . . . . . . . . . . . . . . . . . . . . . . . . . . . . . 9 Robot Analysis Total 1 | . 1 . . . . . . . . . . . . . . . . . . . . . . . . . . . . Derelict Logs Recovered 3 | . . 2 . 1 . . . . . . . . . . . . . . . . . . . . . . . . . Drone Launches . | . . . . . . . . . . . . . . . . . . . . . . . . . . . . . . Drone Recoveries . | . . . . . . . . . . . . . . . . . . . . . . . . . . . . . . Exploration | -11 -10 -10 -9 -9 -9 -8 -8 -8 -8 -8 -7 -7 -7 -7 -6 -6 -5 -5 -5 -5 -5 -5 -5 -5 -4 -4 -4 -4 -3 ------------- Run | Yrd Mat Min Mat Min Exi Min Mat Gar Mat Gar Fac Was Fac Gar Fac Gar Fac Was Fac Ext Cet Arc Hub Gar Fac Was Fac Gar Res Turns Passed 28998 | 226 2207 1536 432 733 2440 191 762 1821 562 1445 171 305 87 1824 90 1961 623 144 952 1756 479 673 833 1415 493 134 426 1711 2566 Spaces Moved 12570 | 83 758 612 203 234 1022 75 350 800 285 649 102 108 48 730 54 971 279 79 418 745 174 362 374 548 140 76 270 770 1251 Core 100 | 11 . . . . 32 . . . . . . . . . . . . . . . . . . . . . . . 57 Treads 11878 | . 251 612 203 234 977 75 350 800 285 649 102 108 48 730 54 971 279 79 418 745 174 362 374 548 140 76 270 770 1194 Legs 592 | 72 507 . . . 13 . . . . . . . . . . . . . . . . . . . . . . . . Wheels . | . . . . . . . . . . . . . . . . . . . . . . . . . . . . . . Hover . | . . . . . . . . . . . . . . . . . . . . . . . . . . . . . . Flight . | . . . . . . . . . . . . . . . . . . . . . . . . . . . . . . Fastest Speed 50 | 50 120 240 160 160 50 160 160 152 148 148 152 152 160 158 158 157 170 170 170 160 160 160 160 160 160 160 152 152 50 Average Speed 169 | 119 179 240 160 160 168 178 160 170 148 151 152 155 160 165 158 163 170 170 170 172 187 160 202 164 160 160 155 154 171 Slowest Speed 1350 | 200 260 240 160 160 240 200 200 200 152 152 152 192 160 217 158 170 170 170 180 200 200 160 240 240 160 160 160 240 1350 Overloaded Moves . | . . . . . . . . . . . . . . . . . . . . . . . . . . . . . . Propulsion Burnouts . | . . . . . . . . . . . . . . . . . . . . . . . . . . . . . . Robots Hopped 2 | . . . . . . . . . . . . . . . . 2 . . . . . . . . . . . . . Potential Cave-ins 17 | . . . . . . . . . . . . . . . . . 2 . 1 9 . . . . . . . . 5 Cave-ins Triggered 1 | . . . . . . . . . . . . . . . . . . . . 1 . . . . . . . . . Exploration Rate (%) 48 | 4 93 96 23 25 87 16 30 76 30 93 4 81 3 74 3 91 13 73 14 56 57 98 33 67 4 71 7 81 44 Regions Visited 29 Branch Regions 8 Pre-discovered Areas 3 | . 2 . . . 1 . . . . . . . . . . . . . . . . . . . . . . . . Known Exits Taken 9 | . . 1 . . . 1 1 . 1 . . . 1 . 1 . . . 1 . . . 1 . . . 1 . . Unknown Exits Taken 8 | 1 1 . 1 1 1 . . . . . . . . . . . . . . 1 1 1 . . . . . . . Scrap Searched 1 | . . 1 . . . . . . . . . . . . . . . . . . . . . . . . . . . Spaces Dug 65 | . . . . 5 . . . . 10 . . . . . . 2 6 . 9 11 . . 1 4 6 . . . 11 Terrain Destroyed 521 | . 12 . . 5 35 . . 76 35 29 . . . 25 . 18 12 . 67 47 1 1 5 25 15 . . . 113 Melee . | . . . . . . . . . . . . . . . . . . . . . . . . . . . . . . Projectile 181 | . . . . . 10 . . 3 1 6 . . . 1 . 5 11 . 16 47 1 1 5 25 15 . . . 34 AOE 335 | . 12 . . 5 23 . . 73 34 23 . . . 24 . 13 . . 49 . . . . . . . . . 79 Terrain Rammed . | . . . . . . . . . . . . . . . . . . . . . . . . . . . . . . Walls Destroyed . | . . . . . . . . . . . . . . . . . . . . . . . . . . . . . . Machines Disabled . | . . . . . . . . . . . . . . . . . . . . . . . . . . . . . . Actions | -11 -10 -10 -9 -9 -9 -8 -8 -8 -8 -8 -7 -7 -7 -7 -6 -6 -5 -5 -5 -5 -5 -5 -5 -5 -4 -4 -4 -4 -3 --------- Run | Yrd Mat Min Mat Min Exi Min Mat Gar Mat Gar Fac Was Fac Gar Fac Gar Fac Was Fac Ext Cet Arc Hub Gar Fac Was Fac Gar Res Total 18131 | 158 1456 658 287 587 1470 113 471 1029 368 935 114 212 55 1184 58 1259 403 88 582 1112 310 419 428 917 392 86 277 1152 1551 Wait 3079 | 37 561 30 40 347 160 20 29 11 14 33 . 71 . 275 . 160 86 1 86 189 96 10 38 242 233 . . 221 89 Move 12542 | 82 757 611 202 233 1021 74 350 799 284 648 102 107 48 729 54 966 279 78 417 743 173 361 373 547 140 75 269 769 1251 Hop 2 | . . . . . . . . . . . . . . . . 2 . . . . . . . . . . . . . Pick Up 178 | 4 22 2 6 1 29 1 11 10 2 9 . 1 . 14 . 12 1 1 . 3 8 1 1 8 1 2 . 11 17 Fast Attach 136 | 7 6 . . . 9 . 11 6 3 2 . 4 . 6 1 9 2 . 3 12 8 13 . 8 . 1 3 4 18 Attach 81 | . 5 . 3 . 14 . 1 3 1 2 2 . 2 5 2 . 1 . 3 5 1 . . 7 2 1 . 4 17 Detach 12 | . . . . . 3 . 1 . . . . . . . . . . . . 1 . . . 1 . . . . 6 Swap 174 | 1 6 2 1 2 6 1 5 10 17 18 2 2 2 20 . 13 9 . 8 1 . 3 2 12 . . 2 16 13 Drop 194 | . 12 1 4 1 20 1 18 19 7 11 . 5 1 6 1 17 1 1 4 1 9 11 2 5 . . 3 10 23 Fire 1464 | 26 86 9 12 3 202 14 40 149 39 121 8 22 2 127 . 62 24 7 59 90 11 . 12 84 16 7 . 117 115 Melee 26 | . . . 1 . . . . . . . . . . . . . . . . 1 4 20 . . . . . . . Ram 7 | . . . . . 6 . . . . . . . . 1 . . . . . . . . . . . . . . . Kick 2 | 1 1 . . . . . . . . . . . . . . . . . . . . . . . . . . . . Crush 22 | . . 3 1 . . 2 5 1 1 . . . . . . . . . 2 2 . . . 3 . . . . 2 Escape Stasis 4 | . . . . . . . . . . . . . . . . 1 . . . 3 . . . . . . . . . Rewire 191 | . . . . . . . . 21 . 91 . . . 1 . 17 . . . 61 . . . . . . . . . Trap 17 | . . . 17 . . . . . . . . . . . . . . . . . . . . . . . . . . Miscellaneous . | . . . . . . . . . . . . . . . . . . . . . . . . . . . . . . Route ------- -11/Scrapyard -10/Materials (discovered 6 exits: *Mat x3 / [*Min x2] / *Sub) -10/Mines (discovered 3 exits: *Mat x2 / Sub) -9/Materials -9/Mines (discovered 2 exits: Mat / *Exi) -9/Exiles -8/Mines -8/Materials (discovered 2 exits: [*Sto] / Gar) -8/Garrison (discovered 2 exits: *Mat x2) -8/Materials (discovered 2 exits: [*Sto] / Gar) -8/Garrison (discovered 3 exits: *Fac x3) -7/Factory -7/Waste -7/Factory (discovered 2 exits: *Fac / Gar) -7/Garrison (discovered 2 exits: *Fac x2) -6/Factory -6/Garrison (discovered 3 exits: *Fac x3) -5/Factory (discovered 4 exits: Upp x2 / Ext x2) -5/Waste -5/Factory (discovered 4 exits: Upp x2 / *Ext x2) -5/Extension (discovered 2 exits: [*Fac] / *Cet) -5/Cetus (discovered 2 exits: [*Fac] / [*Arc]) -5/Archives (discovered 3 exits: [*Fac] / *Hub x2) -5/Hub_04(d) (discovered 3 exits: [*Fac x2] / Gar) -5/Garrison (discovered 3 exits: [*Fac x3]) -4/Factory -4/Waste -4/Factory (discovered 2 exits: Res / Gar) -4/Garrison (discovered 3 exits: *Res x3) -3/Research History --------- Turn | Location | Event 14 | -11/Scrapyard | Discovered new exit (range 16) 227 | -11/Scrapyard | Entered Materials 253 | -10/Materials | Discovered new exit (range 6) 317 | -10/Materials | Build established: Mutant 519 | -10/Materials | Discovered new exit (range 14) 821 | -10/Materials | Discovered new exit (range 16) 827 | -10/Materials | Derelicts attacked the area 1141 | -10/Materials | Discovered new exit (range 9) 1369 | -10/Materials | Core integrity fell below 50% 1419 | -10/Materials | Discovered new exit (range 16) 1908 | -10/Materials | Discovered new exit (range 7) 1986 | -10/Materials | Build established: Scavenger-Mutant 2000 | -10/Materials | Learned 2 Mines zone layouts 2075 | -10/Materials | Learned location of 1 exit from Storage 2141 | -10/Materials | Learned Storage garrison access intel 2280 | -10/Materials | Learned Storage stockpile data 2330 | -10/Materials | Learned location of 2 exits from Mines 2389 | -10/Materials | Learned location of 2 exits from Mines 2434 | -10/Materials | Entered Mines 2435 | -10/Mines | Identified exit to Materials 2435 | -10/Mines | Identified exit to Subcaves 2548 | -10/Mines | Received a Rocket Launcher from a helpful Derelict 2764 | -10/Mines | Build established: Mutant 3015 | -10/Mines | Assisted by bots powering up and referring to "LRC-V3" 3260 | -10/Mines | Learned Materials non-interactive machine intel 3970 | -10/Mines | Entered Materials 3970 | -9/Materials | Accompanied by 1 ally 3970 | -9/Materials | Evolved 2 slots: Propulsion x1, Utility x1 3971 | -9/Materials | Loaded intel: 37 non-interactive machine locations 4063 | -9/Materials | Central database locked down 4389 | -9/Materials | Discovered new exit (range 9) 4402 | -9/Materials | Entered Mines 4403 | -9/Mines | Assembled infested the area 4403 | -9/Mines | Identified exit to Materials 4425 | -9/Mines | Learned location of 1 exit from Lower Caves 4439 | -9/Mines | Deemed a non-threat by the Exiles lab entrance 4441 | -9/Mines | Discovered new exit (range 5) 4980 | -9/Mines | Found a damaged Exp. Sensor Array with a note attached 4983 | -9/Mines | Found Prototype Device 5135 | -9/Mines | Entered Exiles 5176 | -9/Exiles | Met 8R-AWN 5204 | -9/Exiles | Met EX-HEX 5282 | -9/Exiles | Met EX-DEC 5308 | -9/Exiles | Learned location of Zion (-6) 5386 | -9/Exiles | Discovered new exit (range 14) 5482 | -9/Exiles | Met EX-BIN 5505 | -9/Exiles | Aligned with FarCom system 5506 | -9/Exiles | Given EX-Vault access code 5543 | -9/Exiles | Opened EX-Vault 5554 | -9/Exiles | Found Firepult 5589 | -9/Exiles | Warned to stay clear of 0b10 Research branches 6151 | -9/Exiles | Attacked by the Exiles 6352 | -9/Exiles | Lost 7 parts (4n3u) 6440 | -9/Exiles | Core integrity fell below 50% 6464 | -9/Exiles | Destroyed 8R-AWN 6476 | -9/Exiles | Found Prototype Ballistic Gun 6483 | -9/Exiles | Lost 7 parts (3n1u3w) 6650 | -9/Exiles | Core integrity fell below 20% 6896 | -9/Exiles | Identified 8R-AWN's Boregun 7144 | -9/Exiles | Destroyed EX-BIN 7187 | -9/Exiles | Destroyed EX-HEX 7236 | -9/Exiles | Destroyed EX-DEC 7260 | -9/Exiles | Found Prototype Device 7264 | -9/Exiles | Identified System Purifier 7271 | -9/Exiles | Found Prototype Processor 7281 | -9/Exiles | Found Deploy-a-Sentry 7296 | -9/Exiles | Identified Exp. Sensor Array 7389 | -9/Exiles | Identified Exp. Core Analyzer 7544 | -9/Exiles | Build established: Scavenger-Mutant 7575 | -9/Exiles | Left Exiles lab with Deploy-a-Sentry 7575 | -9/Exiles | Entered Mines 7625 | -8/Mines | Discovered exit to Materials (range 12) 7766 | -8/Mines | Entered Materials 7766 | -8/Materials | Evolved 2 slots: Propulsion x1, Utility x1 7852 | -8/Materials | Garrison activated, responded to threat 7944 | -8/Materials | Build established: Mutant 8311 | -8/Materials | Build established: Scavenger-Mutant 8324 | -8/Materials | Discovered new exit (range 7) 8528 | -8/Materials | Identified exit to Garrison 8528 | -8/Materials | Entered Garrison 8691 | -8/Garrison | Triggered checkpoint 8774 | -8/Garrison | Triggered checkpoint 8899 | -8/Garrison | Garrison Relay disabled 8997 | -8/Garrison | Discovered new exit (range 13) 9079 | -8/Garrison | Phase Generator disabled 9303 | -8/Garrison | Installed Relay Interface Framework 9362 | -8/Garrison | Garrison Relay disabled 9667 | -8/Garrison | Triggered checkpoint 9730 | -8/Garrison | Triggered checkpoint 9788 | -8/Garrison | Garrison Relay disabled 9822 | -8/Garrison | Garrison Relay disabled 9844 | -8/Garrison | Triggered checkpoint 9850 | -8/Garrison | Learned Materials security intel 9890 | -8/Garrison | Discovered new exit (range 13) 10063 | -8/Garrison | Found Unknown Protection 10063 | -8/Garrison | Identified Hvy. Insulated Plating 10349 | -8/Garrison | Entered Materials 10387 | -8/Materials | Discovered new exit (range 13) 10576 | -8/Materials | Build established: Bothacker-Mutant 10888 | -8/Materials | Identified exit to Garrison 10911 | -8/Materials | Entered Garrison 11068 | -8/Garrison | Destroyed 9 combat bots 11085 | -8/Garrison | Triggered checkpoint 11249 | -8/Garrison | Discovered new exit (range 10) 11313 | -8/Garrison | Triggered checkpoint 11313 | -8/Garrison | Garrison Relay disabled 11512 | -8/Garrison | Triggered checkpoint 11677 | -8/Garrison | Triggered checkpoint 11692 | -8/Garrison | Garrison Relay disabled 11719 | -8/Garrison | Triggered checkpoint 11759 | -8/Garrison | Expanded RIF knowledge: Robot Detection 11807 | -8/Garrison | Garrison Relay disabled 12020 | -8/Garrison | Discovered new exit (range 3) 12123 | -8/Garrison | Triggered checkpoint 12157 | -8/Garrison | Triggered checkpoint 12178 | -8/Garrison | Lost 4 allies 12202 | -8/Garrison | Discovered new exit (range 10) 12225 | -8/Garrison | Triggered checkpoint 12286 | -8/Garrison | Garrison Relay disabled 12356 | -8/Garrison | Entered Factory 12356 | -7/Factory | Accompanied by 9 allies 12356 | -7/Factory | Evolved 2 slots: Utility x2 12444 | -7/Factory | Discovered new exit (range 7) 12527 | -7/Factory | Sucked down chute 12527 | -7/Factory | Entered Waste 12542 | -7/Waste | EMP discharged 12542 | -7/Waste | System corruption reached 10% 12555 | -7/Waste | Spotted C-40 Crusher 12559 | -7/Waste | Spotted C-40 Crusher 12563 | -7/Waste | Spotted C-40 Crusher 12570 | -7/Waste | Spotted C-40 Crusher 12571 | -7/Waste | Spotted C-40 Crusher 12588 | -7/Waste | Spotted C-40 Crusher 12637 | -7/Waste | Discovered new exit (range 15) 12642 | -7/Waste | EMP discharged 12653 | -7/Waste | Destroyed C-40 Crusher 12667 | -7/Waste | Allies destroyed C-40 Crusher 12671 | -7/Waste | Destroyed C-40 Crusher 12686 | -7/Waste | Destroyed C-40 Crusher 12707 | -7/Waste | 8 allies followed down the chute 12742 | -7/Waste | EMP discharged 12832 | -7/Waste | Entered Factory 12832 | -7/Factory | Accompanied by 8 allies 12844 | -7/Factory | Discovered new exit (range 12) 12915 | -7/Factory | Identified exit to Garrison 12919 | -7/Factory | Entered Garrison 12919 | -7/Garrison | Accompanied by 6 allies 12949 | -7/Garrison | Lost 3 allies 12953 | -7/Garrison | Triggered checkpoint 13032 | -7/Garrison | Lost 4 allies 13032 | -7/Garrison | Garrison Relay disabled 13068 | -7/Garrison | Garrison Relay disabled 13095 | -7/Garrison | Triggered checkpoint 13165 | -7/Garrison | Triggered checkpoint 13289 | -7/Garrison | Triggered checkpoint 13315 | -7/Garrison | Garrison Relay disabled 13365 | -7/Garrison | Expanded RIF knowledge: Zone Cloak 13559 | -7/Garrison | Triggered checkpoint 13631 | -7/Garrison | Discovered new exit (range 13) 13683 | -7/Garrison | Triggered checkpoint 13705 | -7/Garrison | Heavy support dispatched to Factory 13714 | -7/Garrison | Garrison Relay disabled 13833 | -7/Garrison | Heavy support dispatched to Factory 13859 | -7/Garrison | Heavy support dispatched to Factory 14199 | -7/Garrison | Lost 3 parts (1n1u1w) 14214 | -7/Garrison | Destroyed 13 combat bots 14312 | -7/Garrison | Expanded RIF knowledge: Hotswap 14437 | -7/Garrison | Discovered new exit (range 8) 14465 | -7/Garrison | Rescued a captive Derelict 14467 | -7/Garrison | Rescued a captive Derelict 14530 | -7/Garrison | Garrison Relay disabled 14560 | -7/Garrison | Garrison Relay disabled 14586 | -7/Garrison | Build established: Botlord-Mutant 14743 | -7/Garrison | Entered Factory 14743 | -6/Factory | Accompanied by 2 allies 14743 | -6/Factory | Evolved 2 slots: Utility x2 14833 | -6/Factory | Identified exit to Garrison 14833 | -6/Factory | Entered Garrison 14833 | -6/Garrison | Accompanied by 2 allies 14876 | -6/Garrison | Triggered checkpoint 14923 | -6/Garrison | DAS Turret deployed 14969 | -6/Garrison | Triggered checkpoint 14973 | -6/Garrison | Garrison Relay disabled 15077 | -6/Garrison | Triggered checkpoint 15099 | -6/Garrison | Garrison Relay disabled 15303 | -6/Garrison | Triggered checkpoint 15345 | -6/Garrison | Discovered new exit (range 10) 15415 | -6/Garrison | Lost 3 allies 15549 | -6/Garrison | Triggered checkpoint 15638 | -6/Garrison | Found embedded Infiltrators 15650 | -6/Garrison | Expanded RIF knowledge: Coupler Efficiency 15661 | -6/Garrison | Discovered new exit (range 5) 15677 | -6/Garrison | Triggered checkpoint 15707 | -6/Garrison | Garrison Relay disabled 15778 | -6/Garrison | Spotted B-75 Beast 15784 | -6/Garrison | Assimilated Beast 5a with formatsys_high 15919 | -6/Garrison | Triggered checkpoint 16148 | -6/Garrison | Found Relay Coupler [Proto] 16153 | -6/Garrison | Found Relay Coupler [Proto] 16157 | -6/Garrison | Found Relay Coupler [Proto] 16266 | -6/Garrison | Phase Generator disabled 16358 | -6/Garrison | Garrison Relay disabled 16465 | -6/Garrison | Triggered checkpoint 16730 | -6/Garrison | Garrison Relay disabled 16777 | -6/Garrison | Discovered new exit (range 10) 16794 | -6/Garrison | Entered Factory 16794 | -5/Factory | Evolved 2 slots: Power x1, Utility x1 17118 | -5/Factory | Identified exit to Upper Caves 17118 | -5/Factory | Identified exit to Extension 17394 | -5/Factory | First assault squad dispatched 17417 | -5/Factory | Sucked down chute 17417 | -5/Factory | Entered Waste 17426 | -5/Waste | Spotted C-40 Crusher 17429 | -5/Waste | Spotted C-40 Crusher 17432 | -5/Waste | EMP discharged 17441 | -5/Waste | Spotted C-40 Crusher 17449 | -5/Waste | Spotted C-40 Crusher 17454 | -5/Waste | Spotted C-40 Crusher 17502 | -5/Waste | Discovered new exit (range 16) 17510 | -5/Waste | Spotted C-40 Crusher 17532 | -5/Waste | EMP discharged 17532 | -5/Waste | System corruption reached 10% 17561 | -5/Waste | Entered Factory 17652 | -5/Factory | Spotted B-75 Beast 17688 | -5/Factory | Assimilated Beast 6a with formatsys_high 17740 | -5/Factory | Garrison activated, responded to threat 18087 | -5/Factory | Garrison activated, responded to threat 18513 | -5/Factory | Entered Extension 18521 | -5/Extension | Lost 4 parts (2p2n) 18677 | -5/Extension | Rescued a captive Derelict 18722 | -5/Extension | Rescued a captive Derelict 18780 | -5/Extension | Rescued a captive Derelict 18782 | -5/Extension | Lost 3 parts (1u2w) 18782 | -5/Extension | Rescued a captive Derelict 18898 | -5/Extension | Lost 4 allies 19118 | -5/Extension | Rescued a captive Derelict 19255 | -5/Extension | Build established: Mutant 19842 | -5/Extension | Crushed by falling debris 19894 | -5/Extension | Lost 3 allies 19909 | -5/Extension | Lost 5 parts (1p1n2u1w) 19924 | -5/Extension | Rescued A7 20088 | -5/Extension | Disrupted transfer network 20116 | -5/Extension | Lost 3 parts (1p1n1w) 20190 | -5/Extension | Build established: Scavenger-Mutant 20197 | -5/Extension | Lost 3 allies 20241 | -5/Extension | Discovered new exit (range 10) 20243 | -5/Extension | Discovered new exit (range 6) 20269 | -5/Extension | Entered Cetus 20269 | -5/Cetus | Accompanied by 5 allies (A7) 20274 | -5/Cetus | Acquired a Cetus Manufacturing Module code from A7 20351 | -5/Cetus | Spotted Cetus Guard 20351 | -5/Cetus | Spotted Cetus Guard 20353 | -5/Cetus | Spotted Cetus Guard 20366 | -5/Cetus | Spotted Cetus Guard 20370 | -5/Cetus | Allies destroyed Cetus Guard 20384 | -5/Cetus | Allies destroyed Cetus Guard 20409 | -5/Cetus | Lost 3 allies 20496 | -5/Cetus | Started Cetus Manufacturing Module 20520 | -5/Cetus | Discovered new exit (range 16) 20521 | -5/Cetus | Manufactured an Enhanced Grunt 20546 | -5/Cetus | Manufactured an Enhanced Grunt 20554 | -5/Cetus | Spotted Cetus Guard 20554 | -5/Cetus | Spotted Cetus Guard 20555 | -5/Cetus | Spotted Cetus Guard 20558 | -5/Cetus | Spotted Cetus Guard 20561 | -5/Cetus | Allies destroyed Cetus Guard 20565 | -5/Cetus | Allies destroyed Cetus Guard 20571 | -5/Cetus | Manufactured an Enhanced Grunt 20572 | -5/Cetus | Allies destroyed Cetus Guard 20582 | -5/Cetus | Allies destroyed Cetus Guard 20591 | -5/Cetus | Discovered new exit (range 15) 20596 | -5/Cetus | Manufactured an Enhanced Grunt 20601 | -5/Cetus | Met Revision 17 20621 | -5/Cetus | Manufactured an Enhanced Grunt 20631 | -5/Cetus | Murdered A7 20655 | -5/Cetus | Extracted ID and sensor layout for unrecognized location from A7's data core 20748 | -5/Cetus | Entered Archives 20748 | -5/Archives | Accompanied by 6 allies 20806 | -5/Archives | Discovered new exit (range 14) 20936 | -5/Archives | Discovered new exit (range 15) 21052 | -5/Archives | Discovered new exit (range 16) 21421 | -5/Archives | Entered Hub_04(d) 21421 | -5/Hub_04(d) | Accompanied by 5 allies 21442 | -5/Hub_04(d) | Build established: Botlord-Mutant 21457 | -5/Hub_04(d) | Identified exit to Garrison 21572 | -5/Hub_04(d) | Discovered new exit (range 15) 21656 | -5/Hub_04(d) | Discovered new exit (range 15) 22035 | -5/Hub_04(d) | Network Hub disabled 22035 | -5/Hub_04(d) | Network Hub disabled 22254 | -5/Hub_04(d) | Entered Garrison 22254 | -5/Garrison | Accompanied by 2 allies 22314 | -5/Garrison | Triggered checkpoint 22364 | -5/Garrison | Triggered checkpoint 22373 | -5/Garrison | Garrison Relay disabled 22400 | -5/Garrison | Learned Factory security intel 22454 | -5/Garrison | Spotted B-75 Beast 22508 | -5/Garrison | Destroyed B-75 Beast 22571 | -5/Garrison | Found Prototype Device 22571 | -5/Garrison | Identified Exp. Thermal Shield 22692 | -5/Garrison | Core integrity fell below 50% 22740 | -5/Garrison | Discovered new exit (range 11) 22795 | -5/Garrison | Garrison Relay disabled 22818 | -5/Garrison | Triggered checkpoint 22877 | -5/Garrison | Expanded RIF knowledge: Zone Cloak 23059 | -5/Garrison | Triggered checkpoint 23382 | -5/Garrison | Triggered checkpoint 23467 | -5/Garrison | Discovered new exit (range 10) 23565 | -5/Garrison | Spotted B-75 Beast 23584 | -5/Garrison | Triggered checkpoint 23601 | -5/Garrison | Garrison Relay disabled 23663 | -5/Garrison | Discovered new exit (range 5) 23669 | -5/Garrison | Entered Factory 23669 | -4/Factory | Evolved 2 slots: Utility x2 24103 | -4/Factory | Discovered new exit (range 6) 24162 | -4/Factory | Sucked down chute 24162 | -4/Factory | Entered Waste 24177 | -4/Waste | EMP discharged 24193 | -4/Waste | Spotted C-40 Crusher 24208 | -4/Waste | Spotted C-40 Crusher 24216 | -4/Waste | Spotted C-40 Crusher 24238 | -4/Waste | Spotted C-40 Crusher 24241 | -4/Waste | Spotted C-40 Crusher 24250 | -4/Waste | Spotted C-40 Crusher 24277 | -4/Waste | EMP discharged 24277 | -4/Waste | System corruption reached 10% 24280 | -4/Waste | Discovered new exit (range 11) 24296 | -4/Waste | Entered Factory 24511 | -4/Factory | Discovered new exit (range 15) 24640 | -4/Factory | Identified exit to Garrison 24722 | -4/Factory | Entered Garrison 24722 | -4/Garrison | Accompanied by 2 allies 24736 | -4/Garrison | Triggered checkpoint 24832 | -4/Garrison | Triggered checkpoint 24840 | -4/Garrison | Garrison Relay disabled 25103 | -4/Garrison | Triggered checkpoint 25565 | -4/Garrison | Discovered new exit (range 12) 25579 | -4/Garrison | Expanded RIF knowledge: Autooverride 25606 | -4/Garrison | Triggered checkpoint 25671 | -4/Garrison | Garrison Relay disabled 25708 | -4/Garrison | Expanded RIF knowledge: Code Merge 25812 | -4/Garrison | Triggered checkpoint 25982 | -4/Garrison | Discovered new exit (range 11) 26010 | -4/Garrison | Triggered checkpoint 26037 | -4/Garrison | Found Quantum Capacitor 26068 | -4/Garrison | Garrison Relay disabled 26142 | -4/Garrison | Triggered checkpoint 26189 | -4/Garrison | Lost 3 allies 26212 | -4/Garrison | Triggered checkpoint 26253 | -4/Garrison | Discovered new exit (range 10) 26300 | -4/Garrison | Discovered new exit (range 16) 26300 | -4/Garrison | Discovered new exit (range 81) 26300 | -4/Garrison | Discovered new exit (range 62) 26370 | -4/Garrison | Garrison Relay disabled 26433 | -4/Garrison | Entered Research 26433 | -3/Research | Evolved 2 slots: Propulsion x2 26448 | -3/Research | System corruption reached 10% 26633 | -3/Research | Revision forces began assault on 0b10 26741 | -3/Research | Met up with Revision 17++ 26964 | -3/Research | Found Fusion Bomb Launcher 27133 | -3/Research | Research terminal network offline 27167 | -3/Research | Lost 3 parts (1p1n1w) 27201 | -3/Research | Spotted B-86 Titan 27943 | -3/Research | Spotted Striker 28009 | -3/Research | Destroyed Striker 28193 | -3/Research | Found Prototype Device 28193 | -3/Research | Identified Exp. ECM Suite 28203 | -3/Research | Found Fusion Bomb Launcher 28694 | -3/Research | Spotted Striker 28743 | -3/Research | Destroyed Striker 28863 | -3/Research | Spotted Striker 28864 | -3/Research | Spotted Striker 28871 | -3/Research | Spotted Striker 28881 | -3/Research | Spotted Executioner 28888 | -3/Research | Destroyed Striker 28907 | -3/Research | Destroyed Executioner 28929 | -3/Research | Destroyed Striker 28941 | -3/Research | Spotted Striker 28943 | -3/Research | Spotted Striker 28950 | -3/Research | Destroyed 16 combat bots 28957 | -3/Research | Core integrity fell below 50% 28969 | -3/Research | Core integrity fell below 20% 28971 | -3/Research | Released all parts (2) 28997 | -3/Research | Lost 20 parts (2p5n9u4w) 28999 | -3/Research | Destroyed by Striker with Plasma Lance Last Messages --------------- 28953_ The unstable cave ceiling collapses. 28953_ Adv. Heavy Treads destroyed. 28953_ Critical hit (Blast). 28955_ Knocked back. 28957_ The unstable cave ceiling collapses. 28960_ Critical hit (Impale). 28962_ The unstable cave ceiling collapses. 28962_ Critical hit (Impale). 28964_ System corrupted: IFF burst signal emitted. 28964_ The unstable cave ceiling collapses. 28966_ Imp. Transmission Jammer destroyed. 28968_ Critical hit (Impale). 28971_ Released Huge Storage Unit. 28971_ Released Relay Coupler [Sentry]. 28975_ Critical hit (Burn: +37). 28976_ The unstable cave ceiling collapses. 28992_ CHZLJWE5W#DBBJMD4AFMSLM6US<,MKDDHPO 28997_ Acquired 83 matter. 28997_ Acquired 6 matter. Map ----- +----------------------------------------------------+ | ??????????????????????# # # !"" # | | ??????????????????????# + # ![%=! # # | | ??????????????????????# # # *==*!% | | ??????????????????????# # # ![%!|!! # | | ????????????????????####+####### "["*! # | | ????????????????????# ## """!! #= | | ????????????????????# ## """! | | ????????????????????# ## | | ????????????????????# ## # | | ????????????????????# ######## # # # | | ????????????????????# #??????## ## # # | | ????????????????????###########?????#### %%*% | | ?????????????????????# ???????? ??? ??# # | | ?????????????????????# ???????? ? ??# # | | ?????????????????????# ? ???????"""" ?# # % | | ?????????????????"???# ????? """" # #### | | ????????????? """"??# " "????? """" + | | ????????????? """ ?# "R"????? """" # | | ?????????????? # """???? #### # | | ????????????# ? *!# ???#= ? ???# | | ?????????????? ? [ ???# ???? ##?# == | | ???????????##### # [*!=[ #############;#### =* | | ???????????v % %%%%%= *% /!g% % %%=* | | ?????????? %%% % !=*==* %! =%! % % = ! | | ?????????? % = = % ! = %! % | | ?????????? %% @K K ! %% | | ???????????????# ## ## % # ######+###"##+#### | | ???????????????????# ## # !%[ | | ???????????????? % ## / = | | ???????????????# # % ## "" # | | ???????????????#??# ## """ # | | ??????????????????## %% #? "T # | | ?????????????????? #?? """ # | | ????????????????? ## ! #? "" #% | | ???????????????? ? !%! #? ? # | | ???????????????#??# %= ## ?? # | | ??????????????????## * ## ???? ######### | | ???????????????????# #??????? ???????? | | ???????????????????# #???????##???????? | | ?????????????????????############????????????????? | | ?????????????????????????????????????????????????? | | ?????????????????????????????????????????????????? | | ?????????????????????????????????????????????????? | | ?????????????????????????????????????????????????? | | ?????????????????????????????????????????????????? | | ?????????????????????????????????????????????????? | | ?????????????????????????????????????????????????? | | ?????????????????????????????????????????????????? | | ?????????????????????????????????????????????????? | | ?????????????????????????????????????????????????? | +----------------------------------------------------+ Best States ------------- Heat Dissipation 84 Energy Generation 43 Energy Capacity 565 Matter Stores 300 Matter Capacity 300 Sight Range 16 Terrain Scan Density 10 ECM Strength 3 Jamming Range 16 Armor Coverage 1200 Resistance: TH 15 Phase Shifting 15 Evasion (%) 55 Core Analysis 8 Armor Integrity Analysis 30 Recoil Reduction 6 Offensive Hacking 24 Relay Coupler Types 7 Relay Coupler Value 160 Item Schematics ----------------- Cld. Airjet | -8/Materials | Scanalyzed Robot Schematics ------------------ M-13 Machinist | -10/Materials | Hacked Fabricated ------------ Nothing Repaired ---------- Nothing Studied --------- Imp. Treads | -9/Materials | Hacked Lgt. Treads | -9/Materials | Hacked Hvy. Assault Rifle | -8/Materials | Hacked Remote Datajack | -7/Factory | Hacked Adv. Treads | -7/Factory | Hacked Rocket Launcher | -7/Factory | Hacked Alien Tech Used ----------------- None Achievements -------------- Hack The Planet Hackerman Taming Of The Crushers Versatile Challenges ------------ None Game ------ Seed RagnarokSkeletonPlatform Manual? 0 Play Time 03:40:05 Cumulative 413.7 hours Start 2025.12.21 @ 14:24:25 End 2025.12.28 @ 22:32:39 Sessions 5 Manual Loads 0 Difficulty Rogue Special Mode None Game No. 271 Rogue 271 Adventurer 0 Explorer 0 Win Type - Total 27 Types 10/0/8/1/1/0/3/2/1/1 Lore% 84 Gallery% 80 Achievement% 71 Wizard Run 0 Options --------- Layout 1 ASCII 0 Keyboard 0 Movement Mouse Keybinds 0 Fullscreen 2 Font 24/Smallcaps Map View 50x35 Zoom Use 0% Tactical HUD 1 Map Filters NONE Filters NONE Steam 1 RUN: 1716617c-a9b7-4ede-a489-3c9361bbb1b6